Workbook

Sheet 1. Explications

Sheet 2. Prix actuels
B2: Propriétaire : | C2: Commune de Tully
A3: Taux et prix actuels | C3: 2020
A5: Salaires:
A6: Machiniste | C6: 55
A8: Carburant, par litre:
A9: Diesel | C9: 1.65
A10: Essence (sans plomb) | C10: 1.6
A11: Essence 2 temps | B11: Non | C11: 1.74
A12: Essence sans benzène | B12: =IF(B11="Non","Oui","Non") -> Oui | C12: 3.5
A14: Lubrifiant, par litre:
A15: Huile de moteur | C15: 6.5
A16: Mélange 2-temps | C16: 6.9
A17: Huile de chaîne bio | C17: 5.2
A19: Charges d'immeubles:
A21: en % du prix d'achat | C21: 2
A23: Taxes et assurances:
A24: Taxes | C24: 100
A25: Responsabilité civile | C25: 290
A26: Assurance incendie en % du prix d'achat | C26: 0.2
A27: Casco complète en % du prix d'achat | C27: 2.8
A30: Taux d'intérêts: | C30: 5
A32: Valeur de liquidation: | C32: 5
A34: Supplément pour bénéfice et risque: | C34: 20

Sheet 3. Coûts des machines
B1: Coût des machines | D1: Propriétaire : | E1: ='2. Prix actuels'!C2 -> Commune de Tully
D2: Objet 1 | E2: Objet 2 | F2: Objet 3 | G2: Objet 4
B3: Machine | D3: 71 | E3: 71 | F3: 71 | G3: 71 | H3: Totale
B4: Numéro | D4: =INDEX('4. Données de calcul'!$C$4:$C$75,MATCH(D$3,'4. Données de calcul'!$B$4:$B$75,0)) -> 0 | E4: =INDEX('4. Données de calcul'!$C$4:$C$75,MATCH(E$3,'4. Données de calcul'!$B$4:$B$75,0)) -> 0 | F4: =INDEX('4. Données de calcul'!$C$4:$C$75,MATCH(F$3,'4. Données de calcul'!$B$4:$B$75,0)) -> 0 | G4: =INDEX('4. Données de calcul'!$C$4:$C$75,MATCH(G$3,'4. Données de calcul'!$B$4:$B$75,0)) -> 0
B5: Puissance en kW | D5: =INDEX('4. Données de calcul'!$E$4:$E$75,MATCH(D$3,'4. Données de calcul'!$B$4:$B$75,0)) -> 0 | E5: =INDEX('4. Données de calcul'!$E$4:$E$75,MATCH(E$3,'4. Données de calcul'!$B$4:$B$75,0)) -> 0 | F5: =INDEX('4. Données de calcul'!$E$4:$E$75,MATCH(F$3,'4. Données de calcul'!$B$4:$B$75,0)) -> 0 | G5: =INDEX('4. Données de calcul'!$E$4:$E$75,MATCH(G$3,'4. Données de calcul'!$B$4:$B$75,0)) -> 0
B6: Utilisation annuelle en heure | D6: 250 | E6: 350 | F6: 350 | G6: 250
B7: Prix d'achat | C7: P | D7: =INDEX('4. Données de calcul'!$F$4:$F$75,MATCH(D$3,'4. Données de calcul'!$B$4:$B$75,0)) -> 0 | E7: =INDEX('4. Données de calcul'!$F$4:$F$75,MATCH(E$3,'4. Données de calcul'!$B$4:$B$75,0)) -> 0 | F7: =INDEX('4. Données de calcul'!$F$4:$F$75,MATCH(F$3,'4. Données de calcul'!$B$4:$B$75,0)) -> 0 | G7: =INDEX('4. Données de calcul'!$F$4:$F$75,MATCH(G$3,'4. Données de calcul'!$B$4:$B$75,0)) -> 0 | H7: =SUM(D7:G7) -> 0
B8: Valeur de liquidation | C8: L | D8: =INDEX('4. Données de calcul'!G$4:G$75,MATCH(D$3,'4. Données de calcul'!$B$4:$B$75,0)) -> 0 | E8: =INDEX('4. Données de calcul'!G$4:G$75,MATCH(E$3,'4. Données de calcul'!$B$4:$B$75,0)) -> 0 | F8: =INDEX('4. Données de calcul'!G$4:G$75,MATCH(F$3,'4. Données de calcul'!$B$4:$B$75,0)) -> 0 | G8: =INDEX('4. Données de calcul'!G$4:G$75,MATCH(G$3,'4. Données de calcul'!$B$4:$B$75,0)) -> 0 | H8: =SUM(D8:G8) -> 0
B9: Taux d'intérêts | C9: T | D9: =INDEX('4. Données de calcul'!$H$4:$H$75,MATCH(D$3,'4. Données de calcul'!$B$4:$B$75,0)) -> 0 | E9: =INDEX('4. Données de calcul'!$H$4:$H$75,MATCH(E$3,'4. Données de calcul'!$B$4:$B$75,0)) -> 0 | F9: =INDEX('4. Données de calcul'!$H$4:$H$75,MATCH(F$3,'4. Données de calcul'!$B$4:$B$75,0)) -> 0 | G9: =INDEX('4. Données de calcul'!$H$4:$H$75,MATCH(G$3,'4. Données de calcul'!$B$4:$B$75,0)) -> 0
B10: Durée d'utilisation en heures | C10: H | D10: =INDEX('4. Données de calcul'!$I$4:$I$75,MATCH(D$3,'4. Données de calcul'!$B$4:$B$75,0)) -> 0 | E10: =INDEX('4. Données de calcul'!$I$4:$I$75,MATCH(E$3,'4. Données de calcul'!$B$4:$B$75,0)) -> 0 | F10: =INDEX('4. Données de calcul'!$I$4:$I$75,MATCH(F$3,'4. Données de calcul'!$B$4:$B$75,0)) -> 0 | G10: =INDEX('4. Données de calcul'!$I$4:$I$75,MATCH(G$3,'4. Données de calcul'!$B$4:$B$75,0)) -> 0
B11: Durée d'utilisation en années | C11: D | D11: =INDEX('4. Données de calcul'!$J$4:$J$75,MATCH(D$3,'4. Données de calcul'!$B$4:$B$75,0)) -> 0 | E11: =INDEX('4. Données de calcul'!$J$4:$J$75,MATCH(E$3,'4. Données de calcul'!$B$4:$B$75,0)) -> 0 | F11: =INDEX('4. Données de calcul'!$J$4:$J$75,MATCH(F$3,'4. Données de calcul'!$B$4:$B$75,0)) -> 0 | G11: =INDEX('4. Données de calcul'!$J$4:$J$75,MATCH(G$3,'4. Données de calcul'!$B$4:$B$75,0)) -> 0
B12: Durée d'utilisation en années (effective) | C12: D | D12: =IF(D10/D6>D11,D11,D10/D6) -> 0 | E12: =IF(E10/E6>E11,E11,E10/E6) -> 0 | F12: =IF(F10/F6>F11,F11,F10/F6) -> 0 | G12: =IF(G10/G6>G11,G11,G10/G6) -> 0
B13: Facteur de réparation | C13: R | D13: =INDEX('4. Données de calcul'!$K$4:$K$75,MATCH(D$3,'4. Données de calcul'!$B$4:$B$75,0)) -> 0 | E13: =INDEX('4. Données de calcul'!$K$4:$K$75,MATCH(E$3,'4. Données de calcul'!$B$4:$B$75,0)) -> 0 | F13: =INDEX('4. Données de calcul'!$K$4:$K$75,MATCH(F$3,'4. Données de calcul'!$B$4:$B$75,0)) -> 0 | G13: =INDEX('4. Données de calcul'!$K$4:$K$75,MATCH(G$3,'4. Données de calcul'!$B$4:$B$75,0)) -> 0
B14: Prix du carburant | C14: C | D14: =INDEX('4. Données de calcul'!$M$4:$M$75,MATCH(D$3,'4. Données de calcul'!$B$4:$B$75,0)) -> 0 | E14: =INDEX('4. Données de calcul'!$M$4:$M$75,MATCH(E$3,'4. Données de calcul'!$B$4:$B$75,0)) -> 0 | F14: =INDEX('4. Données de calcul'!$M$4:$M$75,MATCH(F$3,'4. Données de calcul'!$B$4:$B$75,0)) -> 0 | G14: =INDEX('4. Données de calcul'!$M$4:$M$75,MATCH(G$3,'4. Données de calcul'!$B$4:$B$75,0)) -> 0
B15: Prix du lubrifiant | C15: L | D15: =INDEX('4. Données de calcul'!$O$4:$O$75,MATCH(D$3,'4. Données de calcul'!$B$4:$B$75,0)) -> 0 | E15: =INDEX('4. Données de calcul'!$O$4:$O$75,MATCH(E$3,'4. Données de calcul'!$B$4:$B$75,0)) -> 0 | F15: =INDEX('4. Données de calcul'!$O$4:$O$75,MATCH(F$3,'4. Données de calcul'!$B$4:$B$75,0)) -> 0 | G15: =INDEX('4. Données de calcul'!$O$4:$O$75,MATCH(G$3,'4. Données de calcul'!$B$4:$B$75,0)) -> 0
B16: Salaires | C16: S | D16: =INDEX('4. Données de calcul'!$Q$4:$Q$75,MATCH(D$3,'4. Données de calcul'!$B$4:$B$75,0)) -> 0 | E16: =INDEX('4. Données de calcul'!$Q$4:$Q$75,MATCH(E$3,'4. Données de calcul'!$B$4:$B$75,0)) -> 0 | F16: =INDEX('4. Données de calcul'!$Q$4:$Q$75,MATCH(F$3,'4. Données de calcul'!$B$4:$B$75,0)) -> 0 | G16: =INDEX('4. Données de calcul'!$Q$4:$Q$75,MATCH(G$3,'4. Données de calcul'!$B$4:$B$75,0)) -> 0
B17: Plaque immatriculation, impôts | C17: PI | D17: =INDEX('4. Données de calcul'!$U$4:$U$75,MATCH(D$3,'4. Données de calcul'!$B$4:$B$75,0)) -> 0 | E17: =INDEX('4. Données de calcul'!$U$4:$U$75,MATCH(E$3,'4. Données de calcul'!$B$4:$B$75,0)) -> 0 | F17: =INDEX('4. Données de calcul'!$U$4:$U$75,MATCH(F$3,'4. Données de calcul'!$B$4:$B$75,0)) -> 0 | G17: =INDEX('4. Données de calcul'!$U$4:$U$75,MATCH(G$3,'4. Données de calcul'!$B$4:$B$75,0)) -> 0 | H17: =SUM(D17:G17) -> 0
B18: Responsabilité civile | C18: RC | D18: =INDEX('4. Données de calcul'!$W$4:$W$75,MATCH(D$3,'4. Données de calcul'!$B$4:$B$75,0)) -> 0 | E18: =INDEX('4. Données de calcul'!$W$4:$W$75,MATCH(E$3,'4. Données de calcul'!$B$4:$B$75,0)) -> 0 | F18: =INDEX('4. Données de calcul'!$W$4:$W$75,MATCH(F$3,'4. Données de calcul'!$B$4:$B$75,0)) -> 0 | G18: =INDEX('4. Données de calcul'!$W$4:$W$75,MATCH(G$3,'4. Données de calcul'!$B$4:$B$75,0)) -> 0 | H18: 0
B19: Assurance incendie | C19: IN | D19: =INDEX('4. Données de calcul'!$AA$4:$AA$75,MATCH(D$3,'4. Données de calcul'!$B$4:$B$75,0)) -> 0 | E19: =INDEX('4. Données de calcul'!$AA$4:$AA$75,MATCH(E$3,'4. Données de calcul'!$B$4:$B$75,0)) -> 0 | F19: =INDEX('4. Données de calcul'!$AA$4:$AA$75,MATCH(F$3,'4. Données de calcul'!$B$4:$B$75,0)) -> 0 | G19: =INDEX('4. Données de calcul'!$AA$4:$AA$75,MATCH(G$3,'4. Données de calcul'!$B$4:$B$75,0)) -> 0 | H19: 0
B20: Casco partielle/complète | C20: CC | D20: =INDEX('4. Données de calcul'!$Y$4:$Y$75,MATCH(D$3,'4. Données de calcul'!$B$4:$B$75,0)) -> 0 | E20: =INDEX('4. Données de calcul'!$Y$4:$Y$75,MATCH(E$3,'4. Données de calcul'!$B$4:$B$75,0)) -> 0 | F20: =INDEX('4. Données de calcul'!$Y$4:$Y$75,MATCH(F$3,'4. Données de calcul'!$B$4:$B$75,0)) -> 0 | G20: =INDEX('4. Données de calcul'!$Y$4:$Y$75,MATCH(G$3,'4. Données de calcul'!$B$4:$B$75,0)) -> 0 | H20: 0
B21: =IF(OR(D21>0,E21>0,F21>0,G21>0),"Consomm. carburant par H d'utilisation",) -> 0 | D21: =INDEX('4. Données de calcul'!$AB$4:$AB$75,MATCH(D$3,'4. Données de calcul'!$B$4:$B$75,0)) -> 0 | E21: =INDEX('4. Données de calcul'!$AB$4:$AB$75,MATCH(E$3,'4. Données de calcul'!$B$4:$B$75,0)) -> 0 | F21: =INDEX('4. Données de calcul'!$AB$4:$AB$75,MATCH(F$3,'4. Données de calcul'!$B$4:$B$75,0)) -> 0 | G21: =INDEX('4. Données de calcul'!$AB$4:$AB$75,MATCH(G$3,'4. Données de calcul'!$B$4:$B$75,0)) -> 0 | H21: 0
B22: =IF(OR(D22>0,E22>0,F22>0,G22>0),"Consomm. lubrifiant par H d'utilisation",) -> 0 | D22: =INDEX('4. Données de calcul'!$AC$4:$AC$75,MATCH(D$3,'4. Données de calcul'!$B$4:$B$75,0)) -> 0 | E22: =INDEX('4. Données de calcul'!$AC$4:$AC$75,MATCH(E$3,'4. Données de calcul'!$B$4:$B$75,0)) -> 0 | F22: =INDEX('4. Données de calcul'!$AC$4:$AC$75,MATCH(F$3,'4. Données de calcul'!$B$4:$B$75,0)) -> 0 | G22: =INDEX('4. Données de calcul'!$AC$4:$AC$75,MATCH(G$3,'4. Données de calcul'!$B$4:$B$75,0)) -> 0 | H22: 0
B25: 2. FRAIS FIXES, par année
B27: Amortissement | D27: =IF(D7>0,(D7-D8)/D12,0) -> 0 | E27: =IF(E7>0,(E7-E8)/E12,0) -> 0 | F27: =IF(F7>0,(F7-F8)/F12,0) -> 0 | G27: =IF(G7>0,(G7-G8)/G12,0) -> 0 | H27: =SUM(D27:G27) -> 0
B28: Intérêt (0.6 x P x T) | D28: =(D7*D9*0.6)/100 -> 0 | E28: =(E7*E9*0.6)/100 -> 0 | F28: =(F7*F9*0.6)/100 -> 0 | G28: =(G7*G9*0.6)/100 -> 0 | H28: 0
B29: ="Charges d'immeubles ("&'2. Prix actuels'!C21&" % von P, max. 6000.- / Jahr)" -> Charges d'immeubles (2 % von P, max. 6000.- / Jahr) | D29: =INDEX('4. Données de calcul'!$S$4:$S$75,MATCH(D$3,'4. Données de calcul'!$B$4:$B$75,0)) -> 0 | E29: =INDEX('4. Données de calcul'!$S$4:$S$75,MATCH(E$3,'4. Données de calcul'!$B$4:$B$75,0)) -> 0 | F29: =INDEX('4. Données de calcul'!$S$4:$S$75,MATCH(F$3,'4. Données de calcul'!$B$4:$B$75,0)) -> 0 | G29: =INDEX('4. Données de calcul'!$S$4:$S$75,MATCH(G$3,'4. Données de calcul'!$B$4:$B$75,0)) -> 0 | H29: 0
B30: Plaque du véhicule, impôts | D30: =D17 -> 0 | E30: 0 | F30: 0 | G30: 0 | H30: 0
B31: Responsabilité civile | D31: 0 | E31: 0 | F31: 0 | G31: 0 | H31: 0
B32: Assurance incendie | D32: 0 | E32: 0 | F32: 0 | G32: 0 | H32: 0
B33: Casco partielle ou complète | D33: 0 | E33: 0 | F33: 0 | G33: 0 | H33: 0
B35: Total frais fixes | D35: =SUM(D27:D33) -> 0 | E35: =SUM(E27:E33) -> 0 | F35: =SUM(F27:F33) -> 0 | G35: =SUM(G27:G33) -> 0 | H35: =SUM(D35:G35) -> 0
B38: 3. FRAIS VARIABLES. par heure d'utilisation
B41: Carburant | D41: =D14*D21 -> 0 | E41: 0 | F41: 0 | G41: 0 | H41: =SUM(D41:G41) -> 0
B42: Lubrifiant | D42: 0 | E42: =E15*E22 -> 0 | F42: 0 | G42: 0 | H42: =SUM(D42:G42) -> 0
B43: Coût de personnel (5% à 10% de S) | D43: =IF(D3<=11,0.1*D16,0.05*D16) -> 0 | E43: =IF(E3<=11,0.1*E16,0.05*E16) -> 0 | F43: =IF(F3<=11,0.1*F16,0.05*F16) -> 0 | G43: =IF(G3<=11,0.1*G16,0.05*G16) -> 0 | H43: =SUM(D43:G43) -> 0
B44: Réparations (P:H) x R | D44: =IF(D7>0,D7/D10*D13,0) -> 0 | E44: =IF(E7>0,E7/E10*E13,0) -> 0 | F44: =IF(F7>0,F7/F10*F13,0) -> 0 | G44: =IF(G7>0,G7/G10*G13,0) -> 0 | H44: =SUM(D44:G44) -> 0
B46: Total frais variables | D46: =SUM(D41:D45) -> 0 | E46: =SUM(E41:E45) -> 0 | F46: =SUM(F41:F45) -> 0 | G46: =SUM(G41:G45) -> 0 | H46: =SUM(D46:G46) -> 0
B49: 4. COUTS DE REVIENT unitaires
B51: Pour une utilisation annuelle de: | D51: =D6 -> 250 | E51: =E6 -> 350 | F51: =F6 -> 350 | G51: =G6 -> 250
B53: Coût de revient par heure d'utilisation | D53: =(D35/D6)+D46 -> 0 | E53: =(E35/E6)+E46 -> 0 | F53: =(F35/F6)+F46 -> 0 | G53: =(G35/G6)+G46 -> 0 | H53: =SUM(D53:G53) -> 0
B54: =IF(OR($D$3<=11,$E$3<=11,$F$3<=11,$G$3<=11),"Coût de revient par litre",) -> 0 | D54: =IF(D3<=11,D53/D21,"") ->  | E54: =IF(E3<=11,E53/E21,"") ->  | F54: =IF(F3<=11,F53/F21,"") ->  | G54: =IF(G3<=11,G53/G21,"") -> 
B56: 5. TAUX D'INDEMNISATION
B58: Coût de revient par heure d'utilisation | D58: =D53 -> 0 | E58: 0 | F58: 0 | G58: 0 | H58: =SUM(D58:G58) -> 0
B59: Coût de revient par litre
B60: ="+"&'2. Prix actuels'!C34&"% de supplément pour bénéfice et risque" -> +20% de supplément pour bénéfice et risque | D60: =D58*'2. Prix actuels'!$C$34/100 -> 0 | E60: =E58*'2. Prix actuels'!$C$34/100 -> 0 | F60: =F58*'2. Prix actuels'!$C$34/100 -> 0 | G60: =G58*'2. Prix actuels'!$C$34/100 -> 0 | H60: =SUM(D60:G60) -> 0
B62: Taux d'indemnisation par "H" d'utilisation | D62: =D58+D60 -> 0 | E62: =E58+E60 -> 0 | F62: =F58+F60 -> 0 | G62: =G58+G60 -> 0 | H62: =SUM(D62:G62) -> 0
B63: =IF(OR($D$3<=11,$E$3<=11,$F$3<=11,$G$3<=11),"Taux d'indemnisation par litre",) -> 0 | D63: =IF(D3<=11,D59+D60,"") ->  | E63: =IF(E3<=11,E59+E60,"") ->  | F63: =IF(F3<=11,F59+F60,"") ->  | G63: =IF(G3<=11,G59+G60,"") -> 
B80: Diagramm-Daten
D81: =INDEX('4. Données de calcul'!$D$4:$D$74,MATCH('3. Coûts des machines'!D$3,'4. Données de calcul'!$B$4:$B$74)) -> Sélectionnez un objet | E81: =INDEX('4. Données de calcul'!$D$4:$D$74,MATCH('3. Coûts des machines'!E$3,'4. Données de calcul'!$B$4:$B$74)) -> Sélectionnez un objet | F81: =INDEX('4. Données de calcul'!$D$4:$D$74,MATCH('3. Coûts des machines'!F$3,'4. Données de calcul'!$B$4:$B$74)) -> Sélectionnez un objet | G81: =INDEX('4. Données de calcul'!$D$4:$D$74,MATCH('3. Coûts des machines'!G$3,'4. Données de calcul'!$B$4:$B$74)) -> Sélectionnez un objet | H81: Total
B82: Amortissement | D82: =D27 -> 0 | E82: 0 | F82: 0 | G82: 0 | H82: 0
B83: Intérêts | D83: 0 | E83: 0 | F83: 0 | G83: 0 | H83: 0
B84: Immeubles | D84: 0 | E84: 0 | F84: 0 | G84: 0 | H84: 0
B85: Plaque, impôts | D85: 0 | E85: 0 | F85: 0 | G85: 0 | H85: 0
B86: RC | D86: 0 | E86: 0 | F86: 0 | G86: 0 | H86: 0
B87: Ass. incendie | D87: 0 | E87: 0 | F87: 0 | G87: 0 | H87: 0
B88: Casco complète | D88: 0 | E88: 0 | F88: 0 | G88: 0 | H88: 0
B90: Carburant | D90: =D41 -> 0 | E90: 0 | F90: 0 | G90: 0 | H90: 0
B91: Lubrifiant | D91: 0 | E91: 0 | F91: 0 | G91: 0 | H91: 0
B92: Entretien | D92: 0 | E92: 0 | F92: 0 | G92: 0 | H92: 0
B93: Réparations | D93: 0 | E93: 0 | F93: 0 | G93: 0 | H93: 0
B95: Selbstkosten pro Betriebsstunde | D95: =D53 -> 0 | E95: =E53 -> 0 | F95: =F53 -> 0 | G95: =G53 -> 0 | H95: =H53 -> 0
B97: 100 | D97: =(D$35/$B97)+D$46 -> 0 | E97: 0 | F97: 0 | G97: 0 | H97: 0
B98: 150 | D98: 0 | E98: 0 | F98: 0 | G98: 0 | H98: 0
B99: 200 | D99: 0 | E99: 0 | F99: 0 | G99: 0 | H99: 0
B100: 250 | D100: 0 | E100: 0 | F100: 0 | G100: 0 | H100: 0
B101: 300 | D101: 0 | E101: 0 | F101: 0 | G101: 0 | H101: 0
B102: 350 | D102: 0 | E102: 0 | F102: 0 | G102: 0 | H102: 0
B103: 400 | D103: 0 | E103: 0 | F103: 0 | G103: 0 | H103: 0
B104: 450 | D104: 0 | E104: 0 | F104: 0 | G104: 0 | H104: 0
B105: 500 | D105: 0 | E105: 0 | F105: 0 | G105: 0 | H105: 0
B106: 550 | D106: 0 | E106: 0 | F106: 0 | G106: 0 | H106: 0
B107: 600 | D107: =(D$35/$B107)+D$46 -> 0 | E107: 0 | F107: 0 | G107: 0 | H107: 0
B108: 650 | D108: 0 | E108: 0 | F108: 0 | G108: 0 | H108: 0
B109: 700 | D109: 0 | E109: 0 | F109: 0 | G109: 0 | H109: 0
B110: 750 | D110: 0 | E110: 0 | F110: 0 | G110: 0 | H110: 0
B111: 800 | D111: 0 | E111: 0 | F111: 0 | G111: 0 | H111: 0
B112: 850 | D112: 0 | E112: 0 | F112: 0 | G112: 0 | H112: 0
B113: 900 | D113: 0 | E113: 0 | F113: 0 | G113: 0 | H113: 0
B114: 950 | D114: 0 | E114: 0 | F114: 0 | G114: 0 | H114: 0
B115: 1000 | D115: 0 | E115: 0 | F115: 0 | G115: 0 | H115: 0

Sheet 4. Données de calcul
L1: Prix carburant et lubrifiant | T1: Taxes et assurances | AB1: Consommation
A2: Données
A3: Catégorie | B3: Nr | C3: No. | D3: Description de la machine | E3: kW | F3: Prix d'achat | G3: Valeur de liquidaion | H3: Taux d'intérêts | I3: Durée d'utililisation maximum en heures | J3: Durée d'utilisation maximum en années | K3: Facteur réparation | L3: G. | M3: Carburant | N3: G. | O3: Lubrifiant | P3: O/N | Q3: Salaires | R3: O/N | S3: Charges d'immeubles | T3: O/N | U3: Plaque/impôts | V3: O/N | W3: RC | X3: O/N | Y3: Casco | Z3: O/N | AA3: Assurance incendie | AB3: Carburant l/h | AC3: Lubrifiant l/h
A4: Petit outillage manuel | B4: 1 | C4: 1.11 | D4: Tronçonneuse légère | F4: 1100 | G4: =IF(F4>0,F4*'2. Prix actuels'!$C$32/100,0) -> 55 | H4: =IF(F4>0,'2. Prix actuels'!$C$30,0) -> 5 | I4: 1200 | J4: 3 | K4: 1.2 | L4: =IF('2. Prix actuels'!$B$11="Oui",3,4) -> 4 | M4: =_xlfn.IFS(L4=1,'2. Prix actuels'!$C$9,L4=2,'2. Prix actuels'!$C$10,L4=3,'2. Prix actuels'!$C$11,L4=4,'2. Prix actuels'!$C$12,L4<1,0) -> 3.5 | N4: 3 | O4: =_xlfn.IFS(N4=1,'2. Prix actuels'!$C$15,N4=2,'2. Prix actuels'!$C$16,N4=3,'2. Prix actuels'!$C$17,N4<1,0) -> 5.2 | P4: O | Q4: =IF(P4="o",'2. Prix actuels'!$C$6,0) -> 55 | R4: O | S4: =IF(R4="o",IF('2. Prix actuels'!$C$21*F4/100<=6000,'2. Prix actuels'!$C$21*'4. Données de calcul'!F4/100,6000),0) -> 22 | T4: N | U4: =IF(T4="o",'2. Prix actuels'!$C$24,0) -> 0 | V4: N | W4: =IF(V4="o",'2. Prix actuels'!$C$25,0) -> 0 | X4: N | Y4: =IF(X4="o",F4*'2. Prix actuels'!$C$27/100,0) -> 0 | Z4: O | AA4: =IF(Z4="o",F4*'2. Prix actuels'!$C$26/100,0) -> 2.2 | AB4: 1 | AC4: 0.5
A5: Petit outillage manuel | B5: 2 | C5: 1.12 | D5: Tronçonneuse moyenne | F5: 1650 | G5: =IF(F5>0,F5*'2. Prix actuels'!$C$32/100,0) -> 82.5 | H5: =IF(F5>0,'2. Prix actuels'!$C$30,0) -> 5 | I5: 1200 | J5: 3 | K5: 1 | L5: =IF('2. Prix actuels'!$B$11="Oui",3,4) -> 4 | M5: =_xlfn.IFS(L5=1,'2. Prix actuels'!$C$9,L5=2,'2. Prix actuels'!$C$10,L5=3,'2. Prix actuels'!$C$11,L5=4,'2. Prix actuels'!$C$12,L5<1,0) -> 3.5 | N5: 3 | O5: =_xlfn.IFS(N5=1,'2. Prix actuels'!$C$15,N5=2,'2. Prix actuels'!$C$16,N5=3,'2. Prix actuels'!$C$17,N5<1,0) -> 5.2 | P5: O | Q5: =IF(P5="o",'2. Prix actuels'!$C$6,0) -> 55 | R5: O | S5: =IF(R5="o",IF('2. Prix actuels'!$C$21*F5/100<=6000,'2. Prix actuels'!$C$21*'4. Données de calcul'!F5/100,6000),0) -> 33 | T5: N | U5: =IF(T5="o",'2. Prix actuels'!$C$24,0) -> 0 | V5: N | W5: =IF(V5="o",'2. Prix actuels'!$C$25,0) -> 0 | X5: N | Y5: =IF(X5="o",F5*'2. Prix actuels'!$C$27/100,0) -> 0 | Z5: O | AA5: =IF(Z5="o",F5*'2. Prix actuels'!$C$26/100,0) -> 3.3 | AB5: 1.5 | AC5: 0.75
A6: Petit outillage manuel | B6: 3 | C6: 1.13 | D6: Tronçonneuse lourde | F6: 2100 | G6: =IF(F6>0,F6*'2. Prix actuels'!$C$32/100,0) -> 105 | H6: =IF(F6>0,'2. Prix actuels'!$C$30,0) -> 5 | I6: 1200 | J6: 3 | K6: 0.9 | L6: =IF('2. Prix actuels'!$B$11="Oui",3,4) -> 4 | M6: =_xlfn.IFS(L6=1,'2. Prix actuels'!$C$9,L6=2,'2. Prix actuels'!$C$10,L6=3,'2. Prix actuels'!$C$11,L6=4,'2. Prix actuels'!$C$12,L6<1,0) -> 3.5 | N6: 3 | O6: =_xlfn.IFS(N6=1,'2. Prix actuels'!$C$15,N6=2,'2. Prix actuels'!$C$16,N6=3,'2. Prix actuels'!$C$17,N6<1,0) -> 5.2 | P6: O | Q6: =IF(P6="o",'2. Prix actuels'!$C$6,0) -> 55 | R6: O | S6: =IF(R6="o",IF('2. Prix actuels'!$C$21*F6/100<=6000,'2. Prix actuels'!$C$21*'4. Données de calcul'!F6/100,6000),0) -> 42 | T6: N | U6: =IF(T6="o",'2. Prix actuels'!$C$24,0) -> 0 | V6: N | W6: =IF(V6="o",'2. Prix actuels'!$C$25,0) -> 0 | X6: N | Y6: =IF(X6="o",F6*'2. Prix actuels'!$C$27/100,0) -> 0 | Z6: O | AA6: =IF(Z6="o",F6*'2. Prix actuels'!$C$26/100,0) -> 4.2 | AB6: 2 | AC6: 1
A7: Petit outillage manuel | B7: 4 | C7: 1.21 | D7: Débroussailleuse légère | F7: 1100 | G7: =IF(F7>0,F7*'2. Prix actuels'!$C$32/100,0) -> 55 | H7: =IF(F7>0,'2. Prix actuels'!$C$30,0) -> 5 | I7: 1200 | J7: 4 | K7: 0.6 | L7: =IF('2. Prix actuels'!$B$11="Oui",3,4) -> 4 | M7: =_xlfn.IFS(L7=1,'2. Prix actuels'!$C$9,L7=2,'2. Prix actuels'!$C$10,L7=3,'2. Prix actuels'!$C$11,L7=4,'2. Prix actuels'!$C$12,L7<1,0) -> 3.5 | N7: 0 | O7: =_xlfn.IFS(N7=1,'2. Prix actuels'!$C$15,N7=2,'2. Prix actuels'!$C$16,N7=3,'2. Prix actuels'!$C$17,N7<1,0) -> 0 | P7: O | Q7: =IF(P7="o",'2. Prix actuels'!$C$6,0) -> 55 | R7: O | S7: =IF(R7="o",IF('2. Prix actuels'!$C$21*F7/100<=6000,'2. Prix actuels'!$C$21*'4. Données de calcul'!F7/100,6000),0) -> 22 | T7: N | U7: =IF(T7="o",'2. Prix actuels'!$C$24,0) -> 0 | V7: N | W7: =IF(V7="o",'2. Prix actuels'!$C$25,0) -> 0 | X7: N | Y7: =IF(X7="o",F7*'2. Prix actuels'!$C$27/100,0) -> 0 | Z7: O | AA7: =IF(Z7="o",F7*'2. Prix actuels'!$C$26/100,0) -> 2.2 | AB7: 1 | AC7: 0
A8: Petit outillage manuel | B8: 5 | C8: 1.22 | D8: Débroussailleuse moyenne | F8: 1450 | G8: =IF(F8>0,F8*'2. Prix actuels'!$C$32/100,0) -> 72.5 | H8: =IF(F8>0,'2. Prix actuels'!$C$30,0) -> 5 | I8: 1200 | J8: 4 | K8: 0.6 | L8: =IF('2. Prix actuels'!$B$11="Oui",3,4) -> 4 | M8: =_xlfn.IFS(L8=1,'2. Prix actuels'!$C$9,L8=2,'2. Prix actuels'!$C$10,L8=3,'2. Prix actuels'!$C$11,L8=4,'2. Prix actuels'!$C$12,L8<1,0) -> 3.5 | N8: 0 | O8: =_xlfn.IFS(N8=1,'2. Prix actuels'!$C$15,N8=2,'2. Prix actuels'!$C$16,N8=3,'2. Prix actuels'!$C$17,N8<1,0) -> 0 | P8: O | Q8: =IF(P8="o",'2. Prix actuels'!$C$6,0) -> 55 | R8: O | S8: =IF(R8="o",IF('2. Prix actuels'!$C$21*F8/100<=6000,'2. Prix actuels'!$C$21*'4. Données de calcul'!F8/100,6000),0) -> 29 | T8: N | U8: =IF(T8="o",'2. Prix actuels'!$C$24,0) -> 0 | V8: N | W8: =IF(V8="o",'2. Prix actuels'!$C$25,0) -> 0 | X8: N | Y8: =IF(X8="o",F8*'2. Prix actuels'!$C$27/100,0) -> 0 | Z8: O | AA8: =IF(Z8="o",F8*'2. Prix actuels'!$C$26/100,0) -> 2.9 | AB8: 1.25 | AC8: 0
A9: Petit outillage manuel | B9: 6 | C9: 1.23 | D9: Débroussailleuse lourde | F9: 2050 | G9: =IF(F9>0,F9*'2. Prix actuels'!$C$32/100,0) -> 102.5 | H9: =IF(F9>0,'2. Prix actuels'!$C$30,0) -> 5 | I9: 1200 | J9: 4 | K9: 0.6 | L9: =IF('2. Prix actuels'!$B$11="Oui",3,4) -> 4 | M9: =_xlfn.IFS(L9=1,'2. Prix actuels'!$C$9,L9=2,'2. Prix actuels'!$C$10,L9=3,'2. Prix actuels'!$C$11,L9=4,'2. Prix actuels'!$C$12,L9<1,0) -> 3.5 | N9: 0 | O9: =_xlfn.IFS(N9=1,'2. Prix actuels'!$C$15,N9=2,'2. Prix actuels'!$C$16,N9=3,'2. Prix actuels'!$C$17,N9<1,0) -> 0 | P9: O | Q9: =IF(P9="o",'2. Prix actuels'!$C$6,0) -> 55 | R9: O | S9: =IF(R9="o",IF('2. Prix actuels'!$C$21*F9/100<=6000,'2. Prix actuels'!$C$21*'4. Données de calcul'!F9/100,6000),0) -> 41 | T9: N | U9: =IF(T9="o",'2. Prix actuels'!$C$24,0) -> 0 | V9: N | W9: =IF(V9="o",'2. Prix actuels'!$C$25,0) -> 0 | X9: N | Y9: =IF(X9="o",F9*'2. Prix actuels'!$C$27/100,0) -> 0 | Z9: O | AA9: =IF(Z9="o",F9*'2. Prix actuels'!$C$26/100,0) -> 4.1 | AB9: 1.5 | AC9: 0
A10: Petit outillage manuel | B10: 7 | C10: 1.31 | D10: Scie à moteur avec treuil moyenne | F10: 3800 | G10: =IF(F10>0,F10*'2. Prix actuels'!$C$32/100,0) -> 190 | H10: =IF(F10>0,'2. Prix actuels'!$C$30,0) -> 5 | I10: 1200 | J10: 5 | K10: 1 | L10: =IF('2. Prix actuels'!$B$11="Oui",3,4) -> 4 | M10: =_xlfn.IFS(L10=1,'2. Prix actuels'!$C$9,L10=2,'2. Prix actuels'!$C$10,L10=3,'2. Prix actuels'!$C$11,L10=4,'2. Prix actuels'!$C$12,L10<1,0) -> 3.5 | N10: 0 | O10: =_xlfn.IFS(N10=1,'2. Prix actuels'!$C$15,N10=2,'2. Prix actuels'!$C$16,N10=3,'2. Prix actuels'!$C$17,N10<1,0) -> 0 | P10: O | Q10: =IF(P10="o",'2. Prix actuels'!$C$6,0) -> 55 | R10: O | S10: =IF(R10="o",IF('2. Prix actuels'!$C$21*F10/100<=6000,'2. Prix actuels'!$C$21*'4. Données de calcul'!F10/100,6000),0) -> 76 | T10: N | U10: =IF(T10="o",'2. Prix actuels'!$C$24,0) -> 0 | V10: N | W10: =IF(V10="o",'2. Prix actuels'!$C$25,0) -> 0 | X10: N | Y10: =IF(X10="o",F10*'2. Prix actuels'!$C$27/100,0) -> 0 | Z10: O | AA10: =IF(Z10="o",F10*'2. Prix actuels'!$C$26/100,0) -> 7.6 | AB10: 1.5 | AC10: 0
A11: Petit outillage manuel | B11: 8 | C11: 1.41 | D11: Tarière légère | F11: 900 | G11: =IF(F11>0,F11*'2. Prix actuels'!$C$32/100,0) -> 45 | H11: =IF(F11>0,'2. Prix actuels'!$C$30,0) -> 5 | I11: 1200 | J11: 6 | K11: 0.6 | L11: =IF('2. Prix actuels'!$B$11="Oui",3,4) -> 4 | M11: =_xlfn.IFS(L11=1,'2. Prix actuels'!$C$9,L11=2,'2. Prix actuels'!$C$10,L11=3,'2. Prix actuels'!$C$11,L11=4,'2. Prix actuels'!$C$12,L11<1,0) -> 3.5 | N11: 0 | O11: =_xlfn.IFS(N11=1,'2. Prix actuels'!$C$15,N11=2,'2. Prix actuels'!$C$16,N11=3,'2. Prix actuels'!$C$17,N11<1,0) -> 0 | P11: O | Q11: =IF(P11="o",'2. Prix actuels'!$C$6,0) -> 55 | R11: O | S11: =IF(R11="o",IF('2. Prix actuels'!$C$21*F11/100<=6000,'2. Prix actuels'!$C$21*'4. Données de calcul'!F11/100,6000),0) -> 18 | T11: N | U11: =IF(T11="o",'2. Prix actuels'!$C$24,0) -> 0 | V11: N | W11: =IF(V11="o",'2. Prix actuels'!$C$25,0) -> 0 | X11: N | Y11: =IF(X11="o",F11*'2. Prix actuels'!$C$27/100,0) -> 0 | Z11: O | AA11: =IF(Z11="o",F11*'2. Prix actuels'!$C$26/100,0) -> 1.8 | AB11: 1 | AC11: 0
A12: Petit outillage manuel | B12: 9 | C12: 1.42 | D12: Tarière lourde | F12: 2600 | G12: =IF(F12>0,F12*'2. Prix actuels'!$C$32/100,0) -> 130 | H12: =IF(F12>0,'2. Prix actuels'!$C$30,0) -> 5 | I12: 1200 | J12: 6 | K12: 0.8 | L12: =IF('2. Prix actuels'!$B$11="Oui",3,4) -> 4 | M12: =_xlfn.IFS(L12=1,'2. Prix actuels'!$C$9,L12=2,'2. Prix actuels'!$C$10,L12=3,'2. Prix actuels'!$C$11,L12=4,'2. Prix actuels'!$C$12,L12<1,0) -> 3.5 | N12: 0 | O12: =_xlfn.IFS(N12=1,'2. Prix actuels'!$C$15,N12=2,'2. Prix actuels'!$C$16,N12=3,'2. Prix actuels'!$C$17,N12<1,0) -> 0 | P12: O | Q12: =IF(P12="o",'2. Prix actuels'!$C$6,0) -> 55 | R12: O | S12: =IF(R12="o",IF('2. Prix actuels'!$C$21*F12/100<=6000,'2. Prix actuels'!$C$21*'4. Données de calcul'!F12/100,6000),0) -> 52 | T12: N | U12: =IF(T12="o",'2. Prix actuels'!$C$24,0) -> 0 | V12: N | W12: =IF(V12="o",'2. Prix actuels'!$C$25,0) -> 0 | X12: N | Y12: =IF(X12="o",F12*'2. Prix actuels'!$C$27/100,0) -> 0 | Z12: O | AA12: =IF(Z12="o",F12*'2. Prix actuels'!$C$26/100,0) -> 5.2 | AB12: 1.5 | AC12: 0
A13: Petit outillage manuel | B13: 10 | C13: 1.51 | D13: Ecorceuse "Eder" avec moteur de tronçonneuse | F13: 2000 | G13: =IF(F13>0,F13*'2. Prix actuels'!$C$32/100,0) -> 100 | H13: =IF(F13>0,'2. Prix actuels'!$C$30,0) -> 5 | I13: 1200 | J13: 5 | K13: 0.9 | L13: =IF('2. Prix actuels'!$B$11="Oui",3,4) -> 4 | M13: =_xlfn.IFS(L13=1,'2. Prix actuels'!$C$9,L13=2,'2. Prix actuels'!$C$10,L13=3,'2. Prix actuels'!$C$11,L13=4,'2. Prix actuels'!$C$12,L13<1,0) -> 3.5 | N13: 0 | O13: =_xlfn.IFS(N13=1,'2. Prix actuels'!$C$15,N13=2,'2. Prix actuels'!$C$16,N13=3,'2. Prix actuels'!$C$17,N13<1,0) -> 0 | P13: O | Q13: =IF(P13="o",'2. Prix actuels'!$C$6,0) -> 55 | R13: O | S13: =IF(R13="o",IF('2. Prix actuels'!$C$21*F13/100<=6000,'2. Prix actuels'!$C$21*'4. Données de calcul'!F13/100,6000),0) -> 40 | T13: N | U13: =IF(T13="o",'2. Prix actuels'!$C$24,0) -> 0 | V13: N | W13: =IF(V13="o",'2. Prix actuels'!$C$25,0) -> 0 | X13: N | Y13: =IF(X13="o",F13*'2. Prix actuels'!$C$27/100,0) -> 0 | Z13: O | AA13: =IF(Z13="o",F13*'2. Prix actuels'!$C$26/100,0) -> 4 | AB13: 1.5 | AC13: 0
A14: Petit outillage manuel | B14: 11 | C14: 1.52 | D14: Ecorceuse "Biber" avec moteur de tronçonneuse | F14: 3200 | G14: =IF(F14>0,F14*'2. Prix actuels'!$C$32/100,0) -> 160 | H14: =IF(F14>0,'2. Prix actuels'!$C$30,0) -> 5 | I14: 1200 | J14: 5 | K14: 0.9 | L14: =IF('2. Prix actuels'!$B$11="Oui",3,4) -> 4 | M14: =_xlfn.IFS(L14=1,'2. Prix actuels'!$C$9,L14=2,'2. Prix actuels'!$C$10,L14=3,'2. Prix actuels'!$C$11,L14=4,'2. Prix actuels'!$C$12,L14<1,0) -> 3.5 | N14: 0 | O14: =_xlfn.IFS(N14=1,'2. Prix actuels'!$C$15,N14=2,'2. Prix actuels'!$C$16,N14=3,'2. Prix actuels'!$C$17,N14<1,0) -> 0 | P14: O | Q14: =IF(P14="o",'2. Prix actuels'!$C$6,0) -> 55 | R14: O | S14: =IF(R14="o",IF('2. Prix actuels'!$C$21*F14/100<=6000,'2. Prix actuels'!$C$21*'4. Données de calcul'!F14/100,6000),0) -> 64 | T14: N | U14: =IF(T14="o",'2. Prix actuels'!$C$24,0) -> 0 | V14: N | W14: =IF(V14="o",'2. Prix actuels'!$C$25,0) -> 0 | X14: N | Y14: =IF(X14="o",F14*'2. Prix actuels'!$C$27/100,0) -> 0 | Z14: O | AA14: =IF(Z14="o",F14*'2. Prix actuels'!$C$26/100,0) -> 6.4 | AB14: 1.5 | AC14: 0
A15: Tracteur et équipement | B15: 12 | C15: 2.11 | D15: Transporteur forestier (sans 2.4/2.5) moyen | E15: 30 | F15: 58000 | G15: =IF(F15>0,F15*'2. Prix actuels'!$C$32/100,0) -> 2900 | H15: =IF(F15>0,'2. Prix actuels'!$C$30,0) -> 5 | I15: 7000 | J15: 7 | K15: 1.1 | L15: 1 | M15: =_xlfn.IFS(L15=1,'2. Prix actuels'!$C$9,L15=2,'2. Prix actuels'!$C$10,L15=3,'2. Prix actuels'!$C$11,L15=4,'2. Prix actuels'!$C$12,L15<1,0) -> 1.65 | N15: 1 | O15: =_xlfn.IFS(N15=1,'2. Prix actuels'!$C$15,N15=2,'2. Prix actuels'!$C$16,N15=3,'2. Prix actuels'!$C$17,N15<1,0) -> 6.5 | P15: O | Q15: =IF(P15="o",'2. Prix actuels'!$C$6,0) -> 55 | R15: O | S15: =IF(R15="o",IF('2. Prix actuels'!$C$21*F15/100<=6000,'2. Prix actuels'!$C$21*'4. Données de calcul'!F15/100,6000),0) -> 1160 | T15: O | U15: =IF(T15="o",'2. Prix actuels'!$C$24,0) -> 100 | V15: O | W15: =IF(V15="o",'2. Prix actuels'!$C$25,0) -> 290 | X15: O | Y15: =IF(X15="o",F15*'2. Prix actuels'!$C$27/100,0) -> 1624 | Z15: N | AA15: =IF(Z15="o",F15*'2. Prix actuels'!$C$26/100,0) -> 0 | AB15: 3.6 | AC15: 0.12
A16: Tracteur et équipement | B16: 13 | C16: 2.12 | D16: Transporteur forestier (sans 2.4/2.5) lourd | E16: 40 | F16: 75000 | G16: =IF(F16>0,F16*'2. Prix actuels'!$C$32/100,0) -> 3750 | H16: =IF(F16>0,'2. Prix actuels'!$C$30,0) -> 5 | I16: 7000 | J16: 7 | K16: 1.1 | L16: 1 | M16: =_xlfn.IFS(L16=1,'2. Prix actuels'!$C$9,L16=2,'2. Prix actuels'!$C$10,L16=3,'2. Prix actuels'!$C$11,L16=4,'2. Prix actuels'!$C$12,L16<1,0) -> 1.65 | N16: 1 | O16: =_xlfn.IFS(N16=1,'2. Prix actuels'!$C$15,N16=2,'2. Prix actuels'!$C$16,N16=3,'2. Prix actuels'!$C$17,N16<1,0) -> 6.5 | P16: O | Q16: =IF(P16="o",'2. Prix actuels'!$C$6,0) -> 55 | R16: O | S16: =IF(R16="o",IF('2. Prix actuels'!$C$21*F16/100<=6000,'2. Prix actuels'!$C$21*'4. Données de calcul'!F16/100,6000),0) -> 1500 | T16: O | U16: =IF(T16="o",'2. Prix actuels'!$C$24,0) -> 100 | V16: O | W16: =IF(V16="o",'2. Prix actuels'!$C$25,0) -> 290 | X16: O | Y16: =IF(X16="o",F16*'2. Prix actuels'!$C$27/100,0) -> 2100 | Z16: N | AA16: =IF(Z16="o",F16*'2. Prix actuels'!$C$26/100,0) -> 0 | AB16: 4.8 | AC16: 0.16
A17: Tracteur et équipement | B17: 14 | C17: 2.21 | D17: Tracteur forestier (sans 2.4/2.5) moyen | E17: 50 | F17: 90000 | G17: =IF(F17>0,F17*'2. Prix actuels'!$C$32/100,0) -> 4500 | H17: =IF(F17>0,'2. Prix actuels'!$C$30,0) -> 5 | I17: 10000 | J17: 10 | K17: 1 | L17: 1 | M17: =_xlfn.IFS(L17=1,'2. Prix actuels'!$C$9,L17=2,'2. Prix actuels'!$C$10,L17=3,'2. Prix actuels'!$C$11,L17=4,'2. Prix actuels'!$C$12,L17<1,0) -> 1.65 | N17: 1 | O17: =_xlfn.IFS(N17=1,'2. Prix actuels'!$C$15,N17=2,'2. Prix actuels'!$C$16,N17=3,'2. Prix actuels'!$C$17,N17<1,0) -> 6.5 | P17: O | Q17: =IF(P17="o",'2. Prix actuels'!$C$6,0) -> 55 | R17: O | S17: =IF(R17="o",IF('2. Prix actuels'!$C$21*F17/100<=6000,'2. Prix actuels'!$C$21*'4. Données de calcul'!F17/100,6000),0) -> 1800 | T17: O | U17: =IF(T17="o",'2. Prix actuels'!$C$24,0) -> 100 | V17: O | W17: =IF(V17="o",'2. Prix actuels'!$C$25,0) -> 290 | X17: O | Y17: =IF(X17="o",F17*'2. Prix actuels'!$C$27/100,0) -> 2520 | Z17: N | AA17: =IF(Z17="o",F17*'2. Prix actuels'!$C$26/100,0) -> 0 | AB17: 6 | AC17: 0.2
A18: Tracteur et équipement | B18: 15 | C18: 2.22 | D18: Tracteur forestier (sans 2.4/2.5) lourd | E18: 60 | F18: 104000 | G18: =IF(F18>0,F18*'2. Prix actuels'!$C$32/100,0) -> 5200 | H18: =IF(F18>0,'2. Prix actuels'!$C$30,0) -> 5 | I18: 10000 | J18: 10 | K18: 1 | L18: 1 | M18: =_xlfn.IFS(L18=1,'2. Prix actuels'!$C$9,L18=2,'2. Prix actuels'!$C$10,L18=3,'2. Prix actuels'!$C$11,L18=4,'2. Prix actuels'!$C$12,L18<1,0) -> 1.65 | N18: 1 | O18: =_xlfn.IFS(N18=1,'2. Prix actuels'!$C$15,N18=2,'2. Prix actuels'!$C$16,N18=3,'2. Prix actuels'!$C$17,N18<1,0) -> 6.5 | P18: O | Q18: =IF(P18="o",'2. Prix actuels'!$C$6,0) -> 55 | R18: O | S18: =IF(R18="o",IF('2. Prix actuels'!$C$21*F18/100<=6000,'2. Prix actuels'!$C$21*'4. Données de calcul'!F18/100,6000),0) -> 2080 | T18: O | U18: =IF(T18="o",'2. Prix actuels'!$C$24,0) -> 100 | V18: O | W18: =IF(V18="o",'2. Prix actuels'!$C$25,0) -> 290 | X18: O | Y18: =IF(X18="o",F18*'2. Prix actuels'!$C$27/100,0) -> 2912 | Z18: N | AA18: =IF(Z18="o",F18*'2. Prix actuels'!$C$26/100,0) -> 0 | AB18: 7.2 | AC18: 0.24
A19: Tracteur et équipement | B19: 16 | C19: 2.31 | D19: Tracteur de débardage (sans 2.4/2.5) léger | E19: 45 | F19: 110000 | G19: =IF(F19>0,F19*'2. Prix actuels'!$C$32/100,0) -> 5500 | H19: =IF(F19>0,'2. Prix actuels'!$C$30,0) -> 5 | I19: 10000 | J19: 10 | K19: 0.9 | L19: 1 | M19: =_xlfn.IFS(L19=1,'2. Prix actuels'!$C$9,L19=2,'2. Prix actuels'!$C$10,L19=3,'2. Prix actuels'!$C$11,L19=4,'2. Prix actuels'!$C$12,L19<1,0) -> 1.65 | N19: 1 | O19: =_xlfn.IFS(N19=1,'2. Prix actuels'!$C$15,N19=2,'2. Prix actuels'!$C$16,N19=3,'2. Prix actuels'!$C$17,N19<1,0) -> 6.5 | P19: O | Q19: =IF(P19="o",'2. Prix actuels'!$C$6,0) -> 55 | R19: O | S19: =IF(R19="o",IF('2. Prix actuels'!$C$21*F19/100<=6000,'2. Prix actuels'!$C$21*'4. Données de calcul'!F19/100,6000),0) -> 2200 | T19: O | U19: =IF(T19="o",'2. Prix actuels'!$C$24,0) -> 100 | V19: O | W19: =IF(V19="o",'2. Prix actuels'!$C$25,0) -> 290 | X19: O | Y19: =IF(X19="o",F19*'2. Prix actuels'!$C$27/100,0) -> 3080 | Z19: N | AA19: =IF(Z19="o",F19*'2. Prix actuels'!$C$26/100,0) -> 0 | AB19: 5.4 | AC19: 0.18
A20: Tracteur et équipement | B20: 17 | C20: 2.32 | D20: Tracteur de débardage (sans 2.4/2.5) moyen | E20: 60 | F20: 150000 | G20: =IF(F20>0,F20*'2. Prix actuels'!$C$32/100,0) -> 7500 | H20: =IF(F20>0,'2. Prix actuels'!$C$30,0) -> 5 | I20: 10000 | J20: 10 | K20: 0.9 | L20: 1 | M20: =_xlfn.IFS(L20=1,'2. Prix actuels'!$C$9,L20=2,'2. Prix actuels'!$C$10,L20=3,'2. Prix actuels'!$C$11,L20=4,'2. Prix actuels'!$C$12,L20<1,0) -> 1.65 | N20: 1 | O20: =_xlfn.IFS(N20=1,'2. Prix actuels'!$C$15,N20=2,'2. Prix actuels'!$C$16,N20=3,'2. Prix actuels'!$C$17,N20<1,0) -> 6.5 | P20: O | Q20: =IF(P20="o",'2. Prix actuels'!$C$6,0) -> 55 | R20: O | S20: =IF(R20="o",IF('2. Prix actuels'!$C$21*F20/100<=6000,'2. Prix actuels'!$C$21*'4. Données de calcul'!F20/100,6000),0) -> 3000 | T20: O | U20: =IF(T20="o",'2. Prix actuels'!$C$24,0) -> 100 | V20: O | W20: =IF(V20="o",'2. Prix actuels'!$C$25,0) -> 290 | X20: O | Y20: =IF(X20="o",F20*'2. Prix actuels'!$C$27/100,0) -> 4200 | Z20: N | AA20: =IF(Z20="o",F20*'2. Prix actuels'!$C$26/100,0) -> 0 | AB20: 7.2 | AC20: 0.24
A21: Tracteur et équipement | B21: 18 | C21: 2.33 | D21: Tracteur de débardage (sans 2.4/2.5) lourd | E21: 75 | F21: 200000 | G21: =IF(F21>0,F21*'2. Prix actuels'!$C$32/100,0) -> 10000 | H21: =IF(F21>0,'2. Prix actuels'!$C$30,0) -> 5 | I21: 10000 | J21: 10 | K21: 0.9 | L21: 1 | M21: =_xlfn.IFS(L21=1,'2. Prix actuels'!$C$9,L21=2,'2. Prix actuels'!$C$10,L21=3,'2. Prix actuels'!$C$11,L21=4,'2. Prix actuels'!$C$12,L21<1,0) -> 1.65 | N21: 1 | O21: =_xlfn.IFS(N21=1,'2. Prix actuels'!$C$15,N21=2,'2. Prix actuels'!$C$16,N21=3,'2. Prix actuels'!$C$17,N21<1,0) -> 6.5 | P21: O | Q21: =IF(P21="o",'2. Prix actuels'!$C$6,0) -> 55 | R21: O | S21: =IF(R21="o",IF('2. Prix actuels'!$C$21*F21/100<=6000,'2. Prix actuels'!$C$21*'4. Données de calcul'!F21/100,6000),0) -> 4000 | T21: O | U21: =IF(T21="o",'2. Prix actuels'!$C$24,0) -> 100 | V21: O | W21: =IF(V21="o",'2. Prix actuels'!$C$25,0) -> 290 | X21: O | Y21: =IF(X21="o",F21*'2. Prix actuels'!$C$27/100,0) -> 5600 | Z21: N | AA21: =IF(Z21="o",F21*'2. Prix actuels'!$C$26/100,0) -> 0 | AB21: 9 | AC21: 0.3
A22: Tracteur et équipement | B22: 19 | C22: 2.41 | D22: Treuil pour tracteur, un tambour 6 t | F22: 23000 | G22: =IF(F22>0,F22*'2. Prix actuels'!$C$32/100,0) -> 1150 | H22: =IF(F22>0,'2. Prix actuels'!$C$30,0) -> 5 | I22: 10000 | J22: 10 | K22: 0.8 | M22: =_xlfn.IFS(L22=1,'2. Prix actuels'!$C$9,L22=2,'2. Prix actuels'!$C$10,L22=3,'2. Prix actuels'!$C$11,L22=4,'2. Prix actuels'!$C$12,L22<1,0) -> 0 | O22: =_xlfn.IFS(N22=1,'2. Prix actuels'!$C$15,N22=2,'2. Prix actuels'!$C$16,N22=3,'2. Prix actuels'!$C$17,N22<1,0) -> 0 | P22: O | Q22: =IF(P22="o",'2. Prix actuels'!$C$6,0) -> 55 | R22: O | S22: =IF(R22="o",IF('2. Prix actuels'!$C$21*F22/100<=6000,'2. Prix actuels'!$C$21*'4. Données de calcul'!F22/100,6000),0) -> 460 | T22: N | U22: =IF(T22="o",'2. Prix actuels'!$C$24,0) -> 0 | V22: N | W22: =IF(V22="o",'2. Prix actuels'!$C$25,0) -> 0 | X22: O | Y22: =IF(X22="o",F22*'2. Prix actuels'!$C$27/100,0) -> 644 | Z22: N | AA22: =IF(Z22="o",F22*'2. Prix actuels'!$C$26/100,0) -> 0 | AB22: 0 | AC22: 0
A23: Tracteur et équipement | B23: 20 | C23: 2.42 | D23: Treuil pour tracteur, double tambour 6 t | F23: 44000 | G23: =IF(F23>0,F23*'2. Prix actuels'!$C$32/100,0) -> 2200 | H23: =IF(F23>0,'2. Prix actuels'!$C$30,0) -> 5 | I23: 10000 | J23: 10 | K23: 0.8 | M23: =_xlfn.IFS(L23=1,'2. Prix actuels'!$C$9,L23=2,'2. Prix actuels'!$C$10,L23=3,'2. Prix actuels'!$C$11,L23=4,'2. Prix actuels'!$C$12,L23<1,0) -> 0 | O23: =_xlfn.IFS(N23=1,'2. Prix actuels'!$C$15,N23=2,'2. Prix actuels'!$C$16,N23=3,'2. Prix actuels'!$C$17,N23<1,0) -> 0 | P23: O | Q23: =IF(P23="o",'2. Prix actuels'!$C$6,0) -> 55 | R23: O | S23: =IF(R23="o",IF('2. Prix actuels'!$C$21*F23/100<=6000,'2. Prix actuels'!$C$21*'4. Données de calcul'!F23/100,6000),0) -> 880 | T23: N | U23: =IF(T23="o",'2. Prix actuels'!$C$24,0) -> 0 | V23: N | W23: =IF(V23="o",'2. Prix actuels'!$C$25,0) -> 0 | X23: O | Y23: =IF(X23="o",F23*'2. Prix actuels'!$C$27/100,0) -> 1232 | Z23: N | AA23: =IF(Z23="o",F23*'2. Prix actuels'!$C$26/100,0) -> 0 | AB23: 0 | AC23: 0
A24: Tracteur et équipement | B24: 21 | C24: 2.43 | D24: Treuil pour tracteur, un tambour 8 t | F24: 29000 | G24: =IF(F24>0,F24*'2. Prix actuels'!$C$32/100,0) -> 1450 | H24: =IF(F24>0,'2. Prix actuels'!$C$30,0) -> 5 | I24: 10000 | J24: 10 | K24: 0.8 | M24: =_xlfn.IFS(L24=1,'2. Prix actuels'!$C$9,L24=2,'2. Prix actuels'!$C$10,L24=3,'2. Prix actuels'!$C$11,L24=4,'2. Prix actuels'!$C$12,L24<1,0) -> 0 | O24: =_xlfn.IFS(N24=1,'2. Prix actuels'!$C$15,N24=2,'2. Prix actuels'!$C$16,N24=3,'2. Prix actuels'!$C$17,N24<1,0) -> 0 | P24: O | Q24: =IF(P24="o",'2. Prix actuels'!$C$6,0) -> 55 | R24: O | S24: =IF(R24="o",IF('2. Prix actuels'!$C$21*F24/100<=6000,'2. Prix actuels'!$C$21*'4. Données de calcul'!F24/100,6000),0) -> 580 | T24: N | U24: =IF(T24="o",'2. Prix actuels'!$C$24,0) -> 0 | V24: N | W24: =IF(V24="o",'2. Prix actuels'!$C$25,0) -> 0 | X24: O | Y24: =IF(X24="o",F24*'2. Prix actuels'!$C$27/100,0) -> 812 | Z24: N | AA24: =IF(Z24="o",F24*'2. Prix actuels'!$C$26/100,0) -> 0 | AB24: 0 | AC24: 0
A25: Tracteur et équipement | B25: 22 | C25: 2.44 | D25: Treuil pour tracteur, double tambour 8 t | F25: 49000 | G25: =IF(F25>0,F25*'2. Prix actuels'!$C$32/100,0) -> 2450 | H25: =IF(F25>0,'2. Prix actuels'!$C$30,0) -> 5 | I25: 10000 | J25: 10 | K25: 0.8 | M25: =_xlfn.IFS(L25=1,'2. Prix actuels'!$C$9,L25=2,'2. Prix actuels'!$C$10,L25=3,'2. Prix actuels'!$C$11,L25=4,'2. Prix actuels'!$C$12,L25<1,0) -> 0 | O25: =_xlfn.IFS(N25=1,'2. Prix actuels'!$C$15,N25=2,'2. Prix actuels'!$C$16,N25=3,'2. Prix actuels'!$C$17,N25<1,0) -> 0 | P25: O | Q25: =IF(P25="o",'2. Prix actuels'!$C$6,0) -> 55 | R25: O | S25: =IF(R25="o",IF('2. Prix actuels'!$C$21*F25/100<=6000,'2. Prix actuels'!$C$21*'4. Données de calcul'!F25/100,6000),0) -> 980 | T25: N | U25: =IF(T25="o",'2. Prix actuels'!$C$24,0) -> 0 | V25: N | W25: =IF(V25="o",'2. Prix actuels'!$C$25,0) -> 0 | X25: O | Y25: =IF(X25="o",F25*'2. Prix actuels'!$C$27/100,0) -> 1372 | Z25: N | AA25: =IF(Z25="o",F25*'2. Prix actuels'!$C$26/100,0) -> 0 | AB25: 0 | AC25: 0
A26: Tracteur et équipement | B26: 23 | C26: 2.45 | D26: Treuil pour tracteur, bouclier frontal | F26: 26000 | G26: =IF(F26>0,F26*'2. Prix actuels'!$C$32/100,0) -> 1300 | H26: =IF(F26>0,'2. Prix actuels'!$C$30,0) -> 5 | I26: 10000 | J26: 10 | K26: 0.5 | M26: =_xlfn.IFS(L26=1,'2. Prix actuels'!$C$9,L26=2,'2. Prix actuels'!$C$10,L26=3,'2. Prix actuels'!$C$11,L26=4,'2. Prix actuels'!$C$12,L26<1,0) -> 0 | O26: =_xlfn.IFS(N26=1,'2. Prix actuels'!$C$15,N26=2,'2. Prix actuels'!$C$16,N26=3,'2. Prix actuels'!$C$17,N26<1,0) -> 0 | P26: O | Q26: =IF(P26="o",'2. Prix actuels'!$C$6,0) -> 55 | R26: O | S26: =IF(R26="o",IF('2. Prix actuels'!$C$21*F26/100<=6000,'2. Prix actuels'!$C$21*'4. Données de calcul'!F26/100,6000),0) -> 520 | T26: N | U26: =IF(T26="o",'2. Prix actuels'!$C$24,0) -> 0 | V26: N | W26: =IF(V26="o",'2. Prix actuels'!$C$25,0) -> 0 | X26: O | Y26: =IF(X26="o",F26*'2. Prix actuels'!$C$27/100,0) -> 728 | Z26: N | AA26: =IF(Z26="o",F26*'2. Prix actuels'!$C$26/100,0) -> 0 | AB26: 0 | AC26: 0
A27: Tracteur et équipement | B27: 24 | C27: 2.51 | D27: Commande radio pour treuil à un tambour | F27: 10000 | G27: =IF(F27>0,F27*'2. Prix actuels'!$C$32/100,0) -> 500 | H27: =IF(F27>0,'2. Prix actuels'!$C$30,0) -> 5 | I27: 10000 | J27: 10 | K27: 0.7 | M27: =_xlfn.IFS(L27=1,'2. Prix actuels'!$C$9,L27=2,'2. Prix actuels'!$C$10,L27=3,'2. Prix actuels'!$C$11,L27=4,'2. Prix actuels'!$C$12,L27<1,0) -> 0 | O27: =_xlfn.IFS(N27=1,'2. Prix actuels'!$C$15,N27=2,'2. Prix actuels'!$C$16,N27=3,'2. Prix actuels'!$C$17,N27<1,0) -> 0 | P27: O | Q27: =IF(P27="o",'2. Prix actuels'!$C$6,0) -> 55 | R27: O | S27: =IF(R27="o",IF('2. Prix actuels'!$C$21*F27/100<=6000,'2. Prix actuels'!$C$21*'4. Données de calcul'!F27/100,6000),0) -> 200 | T27: N | U27: =IF(T27="o",'2. Prix actuels'!$C$24,0) -> 0 | V27: N | W27: =IF(V27="o",'2. Prix actuels'!$C$25,0) -> 0 | X27: O | Y27: =IF(X27="o",F27*'2. Prix actuels'!$C$27/100,0) -> 280 | Z27: N | AA27: =IF(Z27="o",F27*'2. Prix actuels'!$C$26/100,0) -> 0 | AB27: 0 | AC27: 0
A28: Tracteur et équipement | B28: 25 | C28: 2.52 | D28: Commande radio pour treuil à double tambour | F28: 13000 | G28: =IF(F28>0,F28*'2. Prix actuels'!$C$32/100,0) -> 650 | H28: =IF(F28>0,'2. Prix actuels'!$C$30,0) -> 5 | I28: 10000 | J28: 10 | K28: 0.7 | M28: =_xlfn.IFS(L28=1,'2. Prix actuels'!$C$9,L28=2,'2. Prix actuels'!$C$10,L28=3,'2. Prix actuels'!$C$11,L28=4,'2. Prix actuels'!$C$12,L28<1,0) -> 0 | O28: =_xlfn.IFS(N28=1,'2. Prix actuels'!$C$15,N28=2,'2. Prix actuels'!$C$16,N28=3,'2. Prix actuels'!$C$17,N28<1,0) -> 0 | P28: O | Q28: =IF(P28="o",'2. Prix actuels'!$C$6,0) -> 55 | R28: O | S28: =IF(R28="o",IF('2. Prix actuels'!$C$21*F28/100<=6000,'2. Prix actuels'!$C$21*'4. Données de calcul'!F28/100,6000),0) -> 260 | T28: N | U28: =IF(T28="o",'2. Prix actuels'!$C$24,0) -> 0 | V28: N | W28: =IF(V28="o",'2. Prix actuels'!$C$25,0) -> 0 | X28: O | Y28: =IF(X28="o",F28*'2. Prix actuels'!$C$27/100,0) -> 364 | Z28: N | AA28: =IF(Z28="o",F28*'2. Prix actuels'!$C$26/100,0) -> 0 | AB28: 0 | AC28: 0
A29: Tracteurs agricoles | B29: 26 | C29: 3.11 | D29: Tracteur agricole sans 4x4, léger | E29: 33 | F29: 42000 | G29: =IF(F29>0,F29*'2. Prix actuels'!$C$32/100,0) -> 2100 | H29: =IF(F29>0,'2. Prix actuels'!$C$30,0) -> 5 | I29: 7000 | J29: 7 | K29: 1.1 | L29: 1 | M29: =_xlfn.IFS(L29=1,'2. Prix actuels'!$C$9,L29=2,'2. Prix actuels'!$C$10,L29=3,'2. Prix actuels'!$C$11,L29=4,'2. Prix actuels'!$C$12,L29<1,0) -> 1.65 | N29: 1 | O29: =_xlfn.IFS(N29=1,'2. Prix actuels'!$C$15,N29=2,'2. Prix actuels'!$C$16,N29=3,'2. Prix actuels'!$C$17,N29<1,0) -> 6.5 | P29: O | Q29: =IF(P29="o",'2. Prix actuels'!$C$6,0) -> 55 | R29: O | S29: =IF(R29="o",IF('2. Prix actuels'!$C$21*F29/100<=6000,'2. Prix actuels'!$C$21*'4. Données de calcul'!F29/100,6000),0) -> 840 | T29: O | U29: =IF(T29="o",'2. Prix actuels'!$C$24,0) -> 100 | V29: O | W29: =IF(V29="o",'2. Prix actuels'!$C$25,0) -> 290 | X29: O | Y29: =IF(X29="o",F29*'2. Prix actuels'!$C$27/100,0) -> 1176 | Z29: N | AA29: =IF(Z29="o",F29*'2. Prix actuels'!$C$26/100,0) -> 0 | AB29: 4 | AC29: 0.132
A30: Tracteurs agricoles | B30: 27 | C30: 3.12 | D30: Tracteur agricole sans 4x4, moyen | E30: 50 | F30: 58000 | G30: =IF(F30>0,F30*'2. Prix actuels'!$C$32/100,0) -> 2900 | H30: =IF(F30>0,'2. Prix actuels'!$C$30,0) -> 5 | I30: 7000 | J30: 7 | K30: 1.1 | L30: 1 | M30: =_xlfn.IFS(L30=1,'2. Prix actuels'!$C$9,L30=2,'2. Prix actuels'!$C$10,L30=3,'2. Prix actuels'!$C$11,L30=4,'2. Prix actuels'!$C$12,L30<1,0) -> 1.65 | N30: 1 | O30: =_xlfn.IFS(N30=1,'2. Prix actuels'!$C$15,N30=2,'2. Prix actuels'!$C$16,N30=3,'2. Prix actuels'!$C$17,N30<1,0) -> 6.5 | P30: O | Q30: =IF(P30="o",'2. Prix actuels'!$C$6,0) -> 55 | R30: O | S30: =IF(R30="o",IF('2. Prix actuels'!$C$21*F30/100<=6000,'2. Prix actuels'!$C$21*'4. Données de calcul'!F30/100,6000),0) -> 1160 | T30: O | U30: =IF(T30="o",'2. Prix actuels'!$C$24,0) -> 100 | V30: O | W30: =IF(V30="o",'2. Prix actuels'!$C$25,0) -> 290 | X30: O | Y30: =IF(X30="o",F30*'2. Prix actuels'!$C$27/100,0) -> 1624 | Z30: N | AA30: =IF(Z30="o",F30*'2. Prix actuels'!$C$26/100,0) -> 0 | AB30: 6 | AC30: 0.2
A31: Tracteurs agricoles | B31: 28 | C31: 3.13 | D31: Tracteur agricole sans 4x4, lourd | E31: 70 | F31: 87000 | G31: =IF(F31>0,F31*'2. Prix actuels'!$C$32/100,0) -> 4350 | H31: =IF(F31>0,'2. Prix actuels'!$C$30,0) -> 5 | I31: 10000 | J31: 10 | K31: 1.1 | L31: 1 | M31: =_xlfn.IFS(L31=1,'2. Prix actuels'!$C$9,L31=2,'2. Prix actuels'!$C$10,L31=3,'2. Prix actuels'!$C$11,L31=4,'2. Prix actuels'!$C$12,L31<1,0) -> 1.65 | N31: 1 | O31: =_xlfn.IFS(N31=1,'2. Prix actuels'!$C$15,N31=2,'2. Prix actuels'!$C$16,N31=3,'2. Prix actuels'!$C$17,N31<1,0) -> 6.5 | P31: O | Q31: =IF(P31="o",'2. Prix actuels'!$C$6,0) -> 55 | R31: O | S31: =IF(R31="o",IF('2. Prix actuels'!$C$21*F31/100<=6000,'2. Prix actuels'!$C$21*'4. Données de calcul'!F31/100,6000),0) -> 1740 | T31: O | U31: =IF(T31="o",'2. Prix actuels'!$C$24,0) -> 100 | V31: O | W31: =IF(V31="o",'2. Prix actuels'!$C$25,0) -> 290 | X31: O | Y31: =IF(X31="o",F31*'2. Prix actuels'!$C$27/100,0) -> 2436 | Z31: N | AA31: =IF(Z31="o",F31*'2. Prix actuels'!$C$26/100,0) -> 0 | AB31: 8.4 | AC31: 0.28
A32: Tracteurs agricoles | B32: 29 | C32: 3.21 | D32: Tracteur agricole avec 4x4, moyen | E32: 60 | F32: 73500 | G32: =IF(F32>0,F32*'2. Prix actuels'!$C$32/100,0) -> 3675 | H32: =IF(F32>0,'2. Prix actuels'!$C$30,0) -> 5 | I32: 10000 | J32: 10 | K32: 1.1 | L32: 1 | M32: =_xlfn.IFS(L32=1,'2. Prix actuels'!$C$9,L32=2,'2. Prix actuels'!$C$10,L32=3,'2. Prix actuels'!$C$11,L32=4,'2. Prix actuels'!$C$12,L32<1,0) -> 1.65 | N32: 1 | O32: =_xlfn.IFS(N32=1,'2. Prix actuels'!$C$15,N32=2,'2. Prix actuels'!$C$16,N32=3,'2. Prix actuels'!$C$17,N32<1,0) -> 6.5 | P32: O | Q32: =IF(P32="o",'2. Prix actuels'!$C$6,0) -> 55 | R32: O | S32: =IF(R32="o",IF('2. Prix actuels'!$C$21*F32/100<=6000,'2. Prix actuels'!$C$21*'4. Données de calcul'!F32/100,6000),0) -> 1470 | T32: O | U32: =IF(T32="o",'2. Prix actuels'!$C$24,0) -> 100 | V32: O | W32: =IF(V32="o",'2. Prix actuels'!$C$25,0) -> 290 | X32: O | Y32: =IF(X32="o",F32*'2. Prix actuels'!$C$27/100,0) -> 2058 | Z32: N | AA32: =IF(Z32="o",F32*'2. Prix actuels'!$C$26/100,0) -> 0 | AB32: 7.2 | AC32: 0.2
A33: Tracteurs agricoles | B33: 30 | C33: 3.22 | D33: Tracteur agricole avec 4x4, lourd | E33: 85 | F33: 111000 | G33: =IF(F33>0,F33*'2. Prix actuels'!$C$32/100,0) -> 5550 | H33: =IF(F33>0,'2. Prix actuels'!$C$30,0) -> 5 | I33: 10000 | J33: 10 | K33: 1.1 | L33: 1 | M33: =_xlfn.IFS(L33=1,'2. Prix actuels'!$C$9,L33=2,'2. Prix actuels'!$C$10,L33=3,'2. Prix actuels'!$C$11,L33=4,'2. Prix actuels'!$C$12,L33<1,0) -> 1.65 | N33: 1 | O33: =_xlfn.IFS(N33=1,'2. Prix actuels'!$C$15,N33=2,'2. Prix actuels'!$C$16,N33=3,'2. Prix actuels'!$C$17,N33<1,0) -> 6.5 | P33: O | Q33: =IF(P33="o",'2. Prix actuels'!$C$6,0) -> 55 | R33: O | S33: =IF(R33="o",IF('2. Prix actuels'!$C$21*F33/100<=6000,'2. Prix actuels'!$C$21*'4. Données de calcul'!F33/100,6000),0) -> 2220 | T33: O | U33: =IF(T33="o",'2. Prix actuels'!$C$24,0) -> 100 | V33: O | W33: =IF(V33="o",'2. Prix actuels'!$C$25,0) -> 290 | X33: O | Y33: =IF(X33="o",F33*'2. Prix actuels'!$C$27/100,0) -> 3108 | Z33: N | AA33: =IF(Z33="o",F33*'2. Prix actuels'!$C$26/100,0) -> 0 | AB33: 10.2 | AC33: 0.34
A34: Engins pour trois points | B34: 31 | C34: 4.11 | D34: Treuil, un tambour 4 t | F34: 9000 | G34: =IF(F34>0,F34*'2. Prix actuels'!$C$32/100,0) -> 450 | H34: =IF(F34>0,'2. Prix actuels'!$C$30,0) -> 5 | I34: 3000 | J34: 7 | K34: 1 | M34: =_xlfn.IFS(L34=1,'2. Prix actuels'!$C$9,L34=2,'2. Prix actuels'!$C$10,L34=3,'2. Prix actuels'!$C$11,L34=4,'2. Prix actuels'!$C$12,L34<1,0) -> 0 | O34: =_xlfn.IFS(N34=1,'2. Prix actuels'!$C$15,N34=2,'2. Prix actuels'!$C$16,N34=3,'2. Prix actuels'!$C$17,N34<1,0) -> 0 | P34: O | Q34: =IF(P34="o",'2. Prix actuels'!$C$6,0) -> 55 | R34: O | S34: =IF(R34="o",IF('2. Prix actuels'!$C$21*F34/100<=6000,'2. Prix actuels'!$C$21*'4. Données de calcul'!F34/100,6000),0) -> 180 | T34: N | U34: =IF(T34="o",'2. Prix actuels'!$C$24,0) -> 0 | V34: N | W34: =IF(V34="o",'2. Prix actuels'!$C$25,0) -> 0 | X34: N | Y34: =IF(X34="o",F34*'2. Prix actuels'!$C$27/100,0) -> 0 | Z34: O | AA34: =IF(Z34="o",F34*'2. Prix actuels'!$C$26/100,0) -> 18 | AB34: 0 | AC34: 0
A35: Engins pour trois points | B35: 32 | C35: 4.12 | D35: Treuil, double tambour 6 t | F35: 16000 | G35: =IF(F35>0,F35*'2. Prix actuels'!$C$32/100,0) -> 800 | H35: =IF(F35>0,'2. Prix actuels'!$C$30,0) -> 5 | I35: 3000 | J35: 7 | K35: 1 | M35: =_xlfn.IFS(L35=1,'2. Prix actuels'!$C$9,L35=2,'2. Prix actuels'!$C$10,L35=3,'2. Prix actuels'!$C$11,L35=4,'2. Prix actuels'!$C$12,L35<1,0) -> 0 | O35: =_xlfn.IFS(N35=1,'2. Prix actuels'!$C$15,N35=2,'2. Prix actuels'!$C$16,N35=3,'2. Prix actuels'!$C$17,N35<1,0) -> 0 | P35: O | Q35: =IF(P35="o",'2. Prix actuels'!$C$6,0) -> 55 | R35: O | S35: =IF(R35="o",IF('2. Prix actuels'!$C$21*F35/100<=6000,'2. Prix actuels'!$C$21*'4. Données de calcul'!F35/100,6000),0) -> 320 | T35: N | U35: =IF(T35="o",'2. Prix actuels'!$C$24,0) -> 0 | V35: N | W35: =IF(V35="o",'2. Prix actuels'!$C$25,0) -> 0 | X35: N | Y35: =IF(X35="o",F35*'2. Prix actuels'!$C$27/100,0) -> 0 | Z35: O | AA35: =IF(Z35="o",F35*'2. Prix actuels'!$C$26/100,0) -> 32 | AB35: 0 | AC35: 0
A36: Engins pour trois points | B36: 33 | C36: 4.21 | D36: Fendeuse petite | F36: 5300 | G36: =IF(F36>0,F36*'2. Prix actuels'!$C$32/100,0) -> 265 | H36: =IF(F36>0,'2. Prix actuels'!$C$30,0) -> 5 | I36: 3000 | J36: 7 | K36: 1 | M36: =_xlfn.IFS(L36=1,'2. Prix actuels'!$C$9,L36=2,'2. Prix actuels'!$C$10,L36=3,'2. Prix actuels'!$C$11,L36=4,'2. Prix actuels'!$C$12,L36<1,0) -> 0 | O36: =_xlfn.IFS(N36=1,'2. Prix actuels'!$C$15,N36=2,'2. Prix actuels'!$C$16,N36=3,'2. Prix actuels'!$C$17,N36<1,0) -> 0 | P36: O | Q36: =IF(P36="o",'2. Prix actuels'!$C$6,0) -> 55 | R36: O | S36: =IF(R36="o",IF('2. Prix actuels'!$C$21*F36/100<=6000,'2. Prix actuels'!$C$21*'4. Données de calcul'!F36/100,6000),0) -> 106 | T36: N | U36: =IF(T36="o",'2. Prix actuels'!$C$24,0) -> 0 | V36: N | W36: =IF(V36="o",'2. Prix actuels'!$C$25,0) -> 0 | X36: N | Y36: =IF(X36="o",F36*'2. Prix actuels'!$C$27/100,0) -> 0 | Z36: O | AA36: =IF(Z36="o",F36*'2. Prix actuels'!$C$26/100,0) -> 10.6 | AB36: 0 | AC36: 0
A37: Engins pour trois points | B37: 34 | C37: 4.22 | D37: Fendeuse grosse | F37: 7700 | G37: =IF(F37>0,F37*'2. Prix actuels'!$C$32/100,0) -> 385 | H37: =IF(F37>0,'2. Prix actuels'!$C$30,0) -> 5 | I37: 3000 | J37: 7 | K37: 1 | M37: =_xlfn.IFS(L37=1,'2. Prix actuels'!$C$9,L37=2,'2. Prix actuels'!$C$10,L37=3,'2. Prix actuels'!$C$11,L37=4,'2. Prix actuels'!$C$12,L37<1,0) -> 0 | O37: =_xlfn.IFS(N37=1,'2. Prix actuels'!$C$15,N37=2,'2. Prix actuels'!$C$16,N37=3,'2. Prix actuels'!$C$17,N37<1,0) -> 0 | P37: O | Q37: =IF(P37="o",'2. Prix actuels'!$C$6,0) -> 55 | R37: O | S37: =IF(R37="o",IF('2. Prix actuels'!$C$21*F37/100<=6000,'2. Prix actuels'!$C$21*'4. Données de calcul'!F37/100,6000),0) -> 154 | T37: N | U37: =IF(T37="o",'2. Prix actuels'!$C$24,0) -> 0 | V37: N | W37: =IF(V37="o",'2. Prix actuels'!$C$25,0) -> 0 | X37: N | Y37: =IF(X37="o",F37*'2. Prix actuels'!$C$27/100,0) -> 0 | Z37: O | AA37: =IF(Z37="o",F37*'2. Prix actuels'!$C$26/100,0) -> 15.4 | AB37: 0 | AC37: 0
A38: Engins pour trois points | B38: 35 | C38: 4.31 | D38: Grue | F38: 24500 | G38: =IF(F38>0,F38*'2. Prix actuels'!$C$32/100,0) -> 1225 | H38: =IF(F38>0,'2. Prix actuels'!$C$30,0) -> 5 | I38: 3000 | J38: 7 | K38: 0.8 | M38: =_xlfn.IFS(L38=1,'2. Prix actuels'!$C$9,L38=2,'2. Prix actuels'!$C$10,L38=3,'2. Prix actuels'!$C$11,L38=4,'2. Prix actuels'!$C$12,L38<1,0) -> 0 | N38: 1 | O38: =_xlfn.IFS(N38=1,'2. Prix actuels'!$C$15,N38=2,'2. Prix actuels'!$C$16,N38=3,'2. Prix actuels'!$C$17,N38<1,0) -> 6.5 | P38: O | Q38: =IF(P38="o",'2. Prix actuels'!$C$6,0) -> 55 | R38: O | S38: =IF(R38="o",IF('2. Prix actuels'!$C$21*F38/100<=6000,'2. Prix actuels'!$C$21*'4. Données de calcul'!F38/100,6000),0) -> 490 | T38: N | U38: =IF(T38="o",'2. Prix actuels'!$C$24,0) -> 0 | V38: N | W38: =IF(V38="o",'2. Prix actuels'!$C$25,0) -> 0 | X38: N | Y38: =IF(X38="o",F38*'2. Prix actuels'!$C$27/100,0) -> 0 | Z38: O | AA38: =IF(Z38="o",F38*'2. Prix actuels'!$C$26/100,0) -> 49 | AB38: 0 | AC38: 0.2
A39: Engins pour trois points | B39: 36 | C39: 4.32 | D39: Accessoire pour feuillus | F39: 7500 | G39: =IF(F39>0,F39*'2. Prix actuels'!$C$32/100,0) -> 375 | H39: =IF(F39>0,'2. Prix actuels'!$C$30,0) -> 5 | I39: 2000 | J39: 7 | K39: 0.8 | M39: =_xlfn.IFS(L39=1,'2. Prix actuels'!$C$9,L39=2,'2. Prix actuels'!$C$10,L39=3,'2. Prix actuels'!$C$11,L39=4,'2. Prix actuels'!$C$12,L39<1,0) -> 0 | O39: =_xlfn.IFS(N39=1,'2. Prix actuels'!$C$15,N39=2,'2. Prix actuels'!$C$16,N39=3,'2. Prix actuels'!$C$17,N39<1,0) -> 0 | P39: O | Q39: =IF(P39="o",'2. Prix actuels'!$C$6,0) -> 55 | R39: O | S39: =IF(R39="o",IF('2. Prix actuels'!$C$21*F39/100<=6000,'2. Prix actuels'!$C$21*'4. Données de calcul'!F39/100,6000),0) -> 150 | T39: N | U39: =IF(T39="o",'2. Prix actuels'!$C$24,0) -> 0 | V39: N | W39: =IF(V39="o",'2. Prix actuels'!$C$25,0) -> 0 | X39: N | Y39: =IF(X39="o",F39*'2. Prix actuels'!$C$27/100,0) -> 0 | Z39: O | AA39: =IF(Z39="o",F39*'2. Prix actuels'!$C$26/100,0) -> 15 | AB39: 0 | AC39: 0
A40: Engins pour trois points | B40: 37 | C40: 4.33 | D40: Pulvérisateur | F40: 8700 | G40: =IF(F40>0,F40*'2. Prix actuels'!$C$32/100,0) -> 435 | H40: =IF(F40>0,'2. Prix actuels'!$C$30,0) -> 5 | I40: 2000 | J40: 10 | K40: 1 | M40: =_xlfn.IFS(L40=1,'2. Prix actuels'!$C$9,L40=2,'2. Prix actuels'!$C$10,L40=3,'2. Prix actuels'!$C$11,L40=4,'2. Prix actuels'!$C$12,L40<1,0) -> 0 | O40: =_xlfn.IFS(N40=1,'2. Prix actuels'!$C$15,N40=2,'2. Prix actuels'!$C$16,N40=3,'2. Prix actuels'!$C$17,N40<1,0) -> 0 | P40: O | Q40: =IF(P40="o",'2. Prix actuels'!$C$6,0) -> 55 | R40: O | S40: =IF(R40="o",IF('2. Prix actuels'!$C$21*F40/100<=6000,'2. Prix actuels'!$C$21*'4. Données de calcul'!F40/100,6000),0) -> 174 | T40: N | U40: =IF(T40="o",'2. Prix actuels'!$C$24,0) -> 0 | V40: N | W40: =IF(V40="o",'2. Prix actuels'!$C$25,0) -> 0 | X40: N | Y40: =IF(X40="o",F40*'2. Prix actuels'!$C$27/100,0) -> 0 | Z40: O | AA40: =IF(Z40="o",F40*'2. Prix actuels'!$C$26/100,0) -> 17.4 | AB40: 0 | AC40: 0
A41: Remorques | B41: 38 | C41: 5.01 | D41: Remorque à grue | F41: 69000 | G41: =IF(F41>0,F41*'2. Prix actuels'!$C$32/100,0) -> 3450 | H41: =IF(F41>0,'2. Prix actuels'!$C$30,0) -> 5 | I41: 3000 | J41: 8 | K41: 1 | M41: =_xlfn.IFS(L41=1,'2. Prix actuels'!$C$9,L41=2,'2. Prix actuels'!$C$10,L41=3,'2. Prix actuels'!$C$11,L41=4,'2. Prix actuels'!$C$12,L41<1,0) -> 0 | N41: 1 | O41: =_xlfn.IFS(N41=1,'2. Prix actuels'!$C$15,N41=2,'2. Prix actuels'!$C$16,N41=3,'2. Prix actuels'!$C$17,N41<1,0) -> 6.5 | P41: O | Q41: =IF(P41="o",'2. Prix actuels'!$C$6,0) -> 55 | R41: O | S41: =IF(R41="o",IF('2. Prix actuels'!$C$21*F41/100<=6000,'2. Prix actuels'!$C$21*'4. Données de calcul'!F41/100,6000),0) -> 1380 | T41: N | U41: =IF(T41="o",'2. Prix actuels'!$C$24,0) -> 0 | V41: N | W41: =IF(V41="o",'2. Prix actuels'!$C$25,0) -> 0 | X41: N | Y41: =IF(X41="o",F41*'2. Prix actuels'!$C$27/100,0) -> 0 | Z41: O | AA41: =IF(Z41="o",F41*'2. Prix actuels'!$C$26/100,0) -> 138 | AB41: 0 | AC41: 0.2
A42: Remorques | B42: 39 | C42: 5.02 | D42: Remorque de transport | F42: 15000 | G42: =IF(F42>0,F42*'2. Prix actuels'!$C$32/100,0) -> 750 | H42: =IF(F42>0,'2. Prix actuels'!$C$30,0) -> 5 | I42: 3000 | J42: 8 | K42: 0.8 | M42: =_xlfn.IFS(L42=1,'2. Prix actuels'!$C$9,L42=2,'2. Prix actuels'!$C$10,L42=3,'2. Prix actuels'!$C$11,L42=4,'2. Prix actuels'!$C$12,L42<1,0) -> 0 | O42: =_xlfn.IFS(N42=1,'2. Prix actuels'!$C$15,N42=2,'2. Prix actuels'!$C$16,N42=3,'2. Prix actuels'!$C$17,N42<1,0) -> 0 | P42: O | Q42: =IF(P42="o",'2. Prix actuels'!$C$6,0) -> 55 | R42: O | S42: =IF(R42="o",IF('2. Prix actuels'!$C$21*F42/100<=6000,'2. Prix actuels'!$C$21*'4. Données de calcul'!F42/100,6000),0) -> 300 | T42: N | U42: =IF(T42="o",'2. Prix actuels'!$C$24,0) -> 0 | V42: N | W42: =IF(V42="o",'2. Prix actuels'!$C$25,0) -> 0 | X42: N | Y42: =IF(X42="o",F42*'2. Prix actuels'!$C$27/100,0) -> 0 | Z42: O | AA42: =IF(Z42="o",F42*'2. Prix actuels'!$C$26/100,0) -> 30 | AB42: 0 | AC42: 0
A43: Téléphériques | B43: 40 | C43: 6.11 | D43: Installation conventionelle moyenne | E43: 30 | F43: 135000 | G43: =IF(F43>0,F43*'2. Prix actuels'!$C$32/100,0) -> 6750 | H43: =IF(F43>0,'2. Prix actuels'!$C$30,0) -> 5 | I43: 7000 | J43: 7 | K43: 0.7 | L43: 1 | M43: =_xlfn.IFS(L43=1,'2. Prix actuels'!$C$9,L43=2,'2. Prix actuels'!$C$10,L43=3,'2. Prix actuels'!$C$11,L43=4,'2. Prix actuels'!$C$12,L43<1,0) -> 1.65 | N43: 1 | O43: =_xlfn.IFS(N43=1,'2. Prix actuels'!$C$15,N43=2,'2. Prix actuels'!$C$16,N43=3,'2. Prix actuels'!$C$17,N43<1,0) -> 6.5 | P43: O | Q43: =IF(P43="o",'2. Prix actuels'!$C$6,0) -> 55 | R43: O | S43: =IF(R43="o",IF('2. Prix actuels'!$C$21*F43/100<=6000,'2. Prix actuels'!$C$21*'4. Données de calcul'!F43/100,6000),0) -> 2700 | T43: N | U43: =IF(T43="o",'2. Prix actuels'!$C$24,0) -> 0 | V43: O | W43: =IF(V43="o",'2. Prix actuels'!$C$25,0) -> 290 | X43: O | Y43: =IF(X43="o",F43*'2. Prix actuels'!$C$27/100,0) -> 3780 | Z43: N | AA43: =IF(Z43="o",F43*'2. Prix actuels'!$C$26/100,0) -> 0 | AB43: 3.6 | AC43: 0.12
A44: Téléphériques | B44: 41 | C44: 6.21 | D44: Grue à câble mobile jusqu'à 300 m de câble | E44: 20 | F44: 220000 | G44: =IF(F44>0,F44*'2. Prix actuels'!$C$32/100,0) -> 11000 | H44: =IF(F44>0,'2. Prix actuels'!$C$30,0) -> 5 | I44: 7000 | J44: 7 | K44: 0.7 | L44: 1 | M44: =_xlfn.IFS(L44=1,'2. Prix actuels'!$C$9,L44=2,'2. Prix actuels'!$C$10,L44=3,'2. Prix actuels'!$C$11,L44=4,'2. Prix actuels'!$C$12,L44<1,0) -> 1.65 | N44: 1 | O44: =_xlfn.IFS(N44=1,'2. Prix actuels'!$C$15,N44=2,'2. Prix actuels'!$C$16,N44=3,'2. Prix actuels'!$C$17,N44<1,0) -> 6.5 | P44: O | Q44: =IF(P44="o",'2. Prix actuels'!$C$6,0) -> 55 | R44: O | S44: =IF(R44="o",IF('2. Prix actuels'!$C$21*F44/100<=6000,'2. Prix actuels'!$C$21*'4. Données de calcul'!F44/100,6000),0) -> 4400 | T44: O | U44: =IF(T44="o",'2. Prix actuels'!$C$24,0) -> 100 | V44: O | W44: =IF(V44="o",'2. Prix actuels'!$C$25,0) -> 290 | X44: O | Y44: =IF(X44="o",F44*'2. Prix actuels'!$C$27/100,0) -> 6160 | Z44: N | AA44: =IF(Z44="o",F44*'2. Prix actuels'!$C$26/100,0) -> 0 | AB44: 2.4 | AC44: 0.08
A45: Téléphériques | B45: 42 | C45: 6.22 | D45: Grue à câble mobile jusqu'à 600 m de câble | E45: 30 | F45: 280000 | G45: =IF(F45>0,F45*'2. Prix actuels'!$C$32/100,0) -> 14000 | H45: =IF(F45>0,'2. Prix actuels'!$C$30,0) -> 5 | I45: 7000 | J45: 7 | K45: 0.7 | L45: 1 | M45: =_xlfn.IFS(L45=1,'2. Prix actuels'!$C$9,L45=2,'2. Prix actuels'!$C$10,L45=3,'2. Prix actuels'!$C$11,L45=4,'2. Prix actuels'!$C$12,L45<1,0) -> 1.65 | N45: 1 | O45: =_xlfn.IFS(N45=1,'2. Prix actuels'!$C$15,N45=2,'2. Prix actuels'!$C$16,N45=3,'2. Prix actuels'!$C$17,N45<1,0) -> 6.5 | P45: O | Q45: =IF(P45="o",'2. Prix actuels'!$C$6,0) -> 55 | R45: O | S45: =IF(R45="o",IF('2. Prix actuels'!$C$21*F45/100<=6000,'2. Prix actuels'!$C$21*'4. Données de calcul'!F45/100,6000),0) -> 5600 | T45: O | U45: =IF(T45="o",'2. Prix actuels'!$C$24,0) -> 100 | V45: O | W45: =IF(V45="o",'2. Prix actuels'!$C$25,0) -> 290 | X45: O | Y45: =IF(X45="o",F45*'2. Prix actuels'!$C$27/100,0) -> 7840 | Z45: N | AA45: =IF(Z45="o",F45*'2. Prix actuels'!$C$26/100,0) -> 0 | AB45: 3.6 | AC45: 0.12
A46: Autres machines forestières | B46: 43 | C46: 7.11 | D46: Treuil sur luge commande radio, petits | E46: 20 | F46: 28500 | G46: =IF(F46>0,F46*'2. Prix actuels'!$C$32/100,0) -> 1425 | H46: =IF(F46>0,'2. Prix actuels'!$C$30,0) -> 5 | I46: 3000 | J46: 7 | K46: 1 | L46: 2 | M46: =_xlfn.IFS(L46=1,'2. Prix actuels'!$C$9,L46=2,'2. Prix actuels'!$C$10,L46=3,'2. Prix actuels'!$C$11,L46=4,'2. Prix actuels'!$C$12,L46<1,0) -> 1.6 | N46: 1 | O46: =_xlfn.IFS(N46=1,'2. Prix actuels'!$C$15,N46=2,'2. Prix actuels'!$C$16,N46=3,'2. Prix actuels'!$C$17,N46<1,0) -> 6.5 | P46: O | Q46: =IF(P46="o",'2. Prix actuels'!$C$6,0) -> 55 | R46: O | S46: =IF(R46="o",IF('2. Prix actuels'!$C$21*F46/100<=6000,'2. Prix actuels'!$C$21*'4. Données de calcul'!F46/100,6000),0) -> 570 | T46: O | U46: =IF(T46="o",'2. Prix actuels'!$C$24,0) -> 100 | V46: O | W46: =IF(V46="o",'2. Prix actuels'!$C$25,0) -> 290 | X46: O | Y46: =IF(X46="o",F46*'2. Prix actuels'!$C$27/100,0) -> 798 | Z46: O | AA46: =IF(Z46="o",F46*'2. Prix actuels'!$C$26/100,0) -> 57 | AB46: 2.4 | AC46: 0.08
A47: Autres machines forestières | B47: 44 | C47: 7.12 | D47: Treuil sur luge commande radio, grands | E47: 30 | F47: 46000 | G47: =IF(F47>0,F47*'2. Prix actuels'!$C$32/100,0) -> 2300 | H47: =IF(F47>0,'2. Prix actuels'!$C$30,0) -> 5 | I47: 3000 | J47: 7 | K47: 1 | L47: 1 | M47: =_xlfn.IFS(L47=1,'2. Prix actuels'!$C$9,L47=2,'2. Prix actuels'!$C$10,L47=3,'2. Prix actuels'!$C$11,L47=4,'2. Prix actuels'!$C$12,L47<1,0) -> 1.65 | N47: 1 | O47: =_xlfn.IFS(N47=1,'2. Prix actuels'!$C$15,N47=2,'2. Prix actuels'!$C$16,N47=3,'2. Prix actuels'!$C$17,N47<1,0) -> 6.5 | P47: O | Q47: =IF(P47="o",'2. Prix actuels'!$C$6,0) -> 55 | R47: O | S47: =IF(R47="o",IF('2. Prix actuels'!$C$21*F47/100<=6000,'2. Prix actuels'!$C$21*'4. Données de calcul'!F47/100,6000),0) -> 920 | T47: O | U47: =IF(T47="o",'2. Prix actuels'!$C$24,0) -> 100 | V47: O | W47: =IF(V47="o",'2. Prix actuels'!$C$25,0) -> 290 | X47: O | Y47: =IF(X47="o",F47*'2. Prix actuels'!$C$27/100,0) -> 1288 | Z47: O | AA47: =IF(Z47="o",F47*'2. Prix actuels'!$C$26/100,0) -> 92 | AB47: 3.6 | AC47: 0.12
A48: Autres machines forestières | B48: 45 | C48: 7.21 | D48: Scie à bois électrique circulaire | F48: 2700 | G48: =IF(F48>0,F48*'2. Prix actuels'!$C$32/100,0) -> 135 | H48: =IF(F48>0,'2. Prix actuels'!$C$30,0) -> 5 | I48: 3000 | J48: 10 | K48: 1 | M48: =_xlfn.IFS(L48=1,'2. Prix actuels'!$C$9,L48=2,'2. Prix actuels'!$C$10,L48=3,'2. Prix actuels'!$C$11,L48=4,'2. Prix actuels'!$C$12,L48<1,0) -> 0 | O48: =_xlfn.IFS(N48=1,'2. Prix actuels'!$C$15,N48=2,'2. Prix actuels'!$C$16,N48=3,'2. Prix actuels'!$C$17,N48<1,0) -> 0 | P48: O | Q48: =IF(P48="o",'2. Prix actuels'!$C$6,0) -> 55 | R48: O | S48: =IF(R48="o",IF('2. Prix actuels'!$C$21*F48/100<=6000,'2. Prix actuels'!$C$21*'4. Données de calcul'!F48/100,6000),0) -> 54 | T48: N | U48: =IF(T48="o",'2. Prix actuels'!$C$24,0) -> 0 | V48: N | W48: =IF(V48="o",'2. Prix actuels'!$C$25,0) -> 0 | X48: N | Y48: =IF(X48="o",F48*'2. Prix actuels'!$C$27/100,0) -> 0 | Z48: O | AA48: =IF(Z48="o",F48*'2. Prix actuels'!$C$26/100,0) -> 5.4 | AB48: 0 | AC48: 0
A49: Autres machines forestières | B49: 46 | C49: 7.22 | D49: Scie à bois électrique à ruban | F49: 3600 | G49: =IF(F49>0,F49*'2. Prix actuels'!$C$32/100,0) -> 180 | H49: =IF(F49>0,'2. Prix actuels'!$C$30,0) -> 5 | I49: 4000 | J49: 10 | K49: 1.2 | M49: =_xlfn.IFS(L49=1,'2. Prix actuels'!$C$9,L49=2,'2. Prix actuels'!$C$10,L49=3,'2. Prix actuels'!$C$11,L49=4,'2. Prix actuels'!$C$12,L49<1,0) -> 0 | O49: =_xlfn.IFS(N49=1,'2. Prix actuels'!$C$15,N49=2,'2. Prix actuels'!$C$16,N49=3,'2. Prix actuels'!$C$17,N49<1,0) -> 0 | P49: O | Q49: =IF(P49="o",'2. Prix actuels'!$C$6,0) -> 55 | R49: O | S49: =IF(R49="o",IF('2. Prix actuels'!$C$21*F49/100<=6000,'2. Prix actuels'!$C$21*'4. Données de calcul'!F49/100,6000),0) -> 72 | T49: N | U49: =IF(T49="o",'2. Prix actuels'!$C$24,0) -> 0 | V49: N | W49: =IF(V49="o",'2. Prix actuels'!$C$25,0) -> 0 | X49: N | Y49: =IF(X49="o",F49*'2. Prix actuels'!$C$27/100,0) -> 0 | Z49: O | AA49: =IF(Z49="o",F49*'2. Prix actuels'!$C$26/100,0) -> 7.2 | AB49: 0 | AC49: 0
A50: Autres machines forestières | B50: 47 | C50: 7.31 | D50: Déchiqueteuse petite, avec prise de force | F50: 14000 | G50: =IF(F50>0,F50*'2. Prix actuels'!$C$32/100,0) -> 700 | H50: =IF(F50>0,'2. Prix actuels'!$C$30,0) -> 5 | I50: 3000 | J50: 7 | K50: 1 | M50: =_xlfn.IFS(L50=1,'2. Prix actuels'!$C$9,L50=2,'2. Prix actuels'!$C$10,L50=3,'2. Prix actuels'!$C$11,L50=4,'2. Prix actuels'!$C$12,L50<1,0) -> 0 | N50: 1 | O50: =_xlfn.IFS(N50=1,'2. Prix actuels'!$C$15,N50=2,'2. Prix actuels'!$C$16,N50=3,'2. Prix actuels'!$C$17,N50<1,0) -> 6.5 | P50: O | Q50: =IF(P50="o",'2. Prix actuels'!$C$6,0) -> 55 | R50: O | S50: =IF(R50="o",IF('2. Prix actuels'!$C$21*F50/100<=6000,'2. Prix actuels'!$C$21*'4. Données de calcul'!F50/100,6000),0) -> 280 | T50: N | U50: =IF(T50="o",'2. Prix actuels'!$C$24,0) -> 0 | V50: N | W50: =IF(V50="o",'2. Prix actuels'!$C$25,0) -> 0 | X50: N | Y50: =IF(X50="o",F50*'2. Prix actuels'!$C$27/100,0) -> 0 | Z50: O | AA50: =IF(Z50="o",F50*'2. Prix actuels'!$C$26/100,0) -> 28 | AB50: 0 | AC50: 0
A51: Autres machines forestières | B51: 48 | C51: 7.32 | D51: Déchiqueteuse moyenne, moteur électrique | E51: 20 | F51: 25000 | G51: =IF(F51>0,F51*'2. Prix actuels'!$C$32/100,0) -> 1250 | H51: =IF(F51>0,'2. Prix actuels'!$C$30,0) -> 5 | I51: 4000 | J51: 7 | K51: 1 | M51: =_xlfn.IFS(L51=1,'2. Prix actuels'!$C$9,L51=2,'2. Prix actuels'!$C$10,L51=3,'2. Prix actuels'!$C$11,L51=4,'2. Prix actuels'!$C$12,L51<1,0) -> 0 | N51: 1 | O51: =_xlfn.IFS(N51=1,'2. Prix actuels'!$C$15,N51=2,'2. Prix actuels'!$C$16,N51=3,'2. Prix actuels'!$C$17,N51<1,0) -> 6.5 | P51: O | Q51: =IF(P51="o",'2. Prix actuels'!$C$6,0) -> 55 | R51: O | S51: =IF(R51="o",IF('2. Prix actuels'!$C$21*F51/100<=6000,'2. Prix actuels'!$C$21*'4. Données de calcul'!F51/100,6000),0) -> 500 | T51: N | U51: =IF(T51="o",'2. Prix actuels'!$C$24,0) -> 0 | V51: N | W51: =IF(V51="o",'2. Prix actuels'!$C$25,0) -> 0 | X51: N | Y51: =IF(X51="o",F51*'2. Prix actuels'!$C$27/100,0) -> 0 | Z51: O | AA51: =IF(Z51="o",F51*'2. Prix actuels'!$C$26/100,0) -> 50 | AB51: 0 | AC51: 0
A52: Autres machines forestières | B52: 49 | C52: 7.41 | D52: Nettoyeur haute pression, moyen | E52: 4 | F52: 6000 | G52: =IF(F52>0,F52*'2. Prix actuels'!$C$32/100,0) -> 300 | H52: =IF(F52>0,'2. Prix actuels'!$C$30,0) -> 5 | I52: 1500 | J52: 7 | K52: 1 | M52: =_xlfn.IFS(L52=1,'2. Prix actuels'!$C$9,L52=2,'2. Prix actuels'!$C$10,L52=3,'2. Prix actuels'!$C$11,L52=4,'2. Prix actuels'!$C$12,L52<1,0) -> 0 | O52: =_xlfn.IFS(N52=1,'2. Prix actuels'!$C$15,N52=2,'2. Prix actuels'!$C$16,N52=3,'2. Prix actuels'!$C$17,N52<1,0) -> 0 | P52: O | Q52: =IF(P52="o",'2. Prix actuels'!$C$6,0) -> 55 | R52: O | S52: =IF(R52="o",IF('2. Prix actuels'!$C$21*F52/100<=6000,'2. Prix actuels'!$C$21*'4. Données de calcul'!F52/100,6000),0) -> 120 | T52: N | U52: =IF(T52="o",'2. Prix actuels'!$C$24,0) -> 0 | V52: N | W52: =IF(V52="o",'2. Prix actuels'!$C$25,0) -> 0 | X52: N | Y52: =IF(X52="o",F52*'2. Prix actuels'!$C$27/100,0) -> 0 | Z52: O | AA52: =IF(Z52="o",F52*'2. Prix actuels'!$C$26/100,0) -> 12 | AB52: 0 | AC52: 0
A53: Propres machines | B53: 50 | C53: 10.01 | D53: Libre 1 | G53: =IF(F53>0,F53*'2. Prix actuels'!$C$32/100,0) -> 0 | H53: =IF(F53>0,'2. Prix actuels'!$C$30,0) -> 0 | M53: =_xlfn.IFS(L53=1,'2. Prix actuels'!$C$9,L53=2,'2. Prix actuels'!$C$10,L53=3,'2. Prix actuels'!$C$11,L53=4,'2. Prix actuels'!$C$12,L53<1,0) -> 0 | O53: =_xlfn.IFS(N53=1,'2. Prix actuels'!$C$15,N53=2,'2. Prix actuels'!$C$16,N53=3,'2. Prix actuels'!$C$17,N53<1,0) -> 0 | Q53: =IF(P53="o",'2. Prix actuels'!$C$6,0) -> 0 | S53: =IF(R53="o",IF('2. Prix actuels'!$C$21*F53/100<=6000,'2. Prix actuels'!$C$21*'4. Données de calcul'!F53/100,6000),0) -> 0 | U53: =IF(T53="o",'2. Prix actuels'!$C$24,0) -> 0 | W53: =IF(V53="o",'2. Prix actuels'!$C$25,0) -> 0 | Y53: =IF(X53="o",F53*'2. Prix actuels'!$C$27/100,0) -> 0 | AA53: =IF(Z53="o",F53*'2. Prix actuels'!$C$26/100,0) -> 0 | AB53: 0 | AC53: 0
A54: Propres machines | B54: 51 | C54: 10.02 | D54: Libre 2 | G54: =IF(F54>0,F54*'2. Prix actuels'!$C$32/100,0) -> 0 | H54: =IF(F54>0,'2. Prix actuels'!$C$30,0) -> 0 | M54: =_xlfn.IFS(L54=1,'2. Prix actuels'!$C$9,L54=2,'2. Prix actuels'!$C$10,L54=3,'2. Prix actuels'!$C$11,L54=4,'2. Prix actuels'!$C$12,L54<1,0) -> 0 | O54: =_xlfn.IFS(N54=1,'2. Prix actuels'!$C$15,N54=2,'2. Prix actuels'!$C$16,N54=3,'2. Prix actuels'!$C$17,N54<1,0) -> 0 | Q54: =IF(P54="o",'2. Prix actuels'!$C$6,0) -> 0 | S54: =IF(R54="o",IF('2. Prix actuels'!$C$21*F54/100<=6000,'2. Prix actuels'!$C$21*'4. Données de calcul'!F54/100,6000),0) -> 0 | U54: =IF(T54="o",'2. Prix actuels'!$C$24,0) -> 0 | W54: =IF(V54="o",'2. Prix actuels'!$C$25,0) -> 0 | Y54: =IF(X54="o",F54*'2. Prix actuels'!$C$27/100,0) -> 0 | AA54: =IF(Z54="o",F54*'2. Prix actuels'!$C$26/100,0) -> 0 | AB54: 0 | AC54: 0
A55: Propres machines | B55: 52 | C55: 10.03 | D55: Libre 3 | G55: =IF(F55>0,F55*'2. Prix actuels'!$C$32/100,0) -> 0 | H55: =IF(F55>0,'2. Prix actuels'!$C$30,0) -> 0 | M55: =_xlfn.IFS(L55=1,'2. Prix actuels'!$C$9,L55=2,'2. Prix actuels'!$C$10,L55=3,'2. Prix actuels'!$C$11,L55=4,'2. Prix actuels'!$C$12,L55<1,0) -> 0 | O55: =_xlfn.IFS(N55=1,'2. Prix actuels'!$C$15,N55=2,'2. Prix actuels'!$C$16,N55=3,'2. Prix actuels'!$C$17,N55<1,0) -> 0 | Q55: =IF(P55="o",'2. Prix actuels'!$C$6,0) -> 0 | S55: =IF(R55="o",IF('2. Prix actuels'!$C$21*F55/100<=6000,'2. Prix actuels'!$C$21*'4. Données de calcul'!F55/100,6000),0) -> 0 | U55: =IF(T55="o",'2. Prix actuels'!$C$24,0) -> 0 | W55: =IF(V55="o",'2. Prix actuels'!$C$25,0) -> 0 | Y55: =IF(X55="o",F55*'2. Prix actuels'!$C$27/100,0) -> 0 | AA55: =IF(Z55="o",F55*'2. Prix actuels'!$C$26/100,0) -> 0 | AB55: 0 | AC55: 0
A56: Propres machines | B56: 53 | C56: 10.04 | D56: Libre 4 | G56: =IF(F56>0,F56*'2. Prix actuels'!$C$32/100,0) -> 0 | H56: =IF(F56>0,'2. Prix actuels'!$C$30,0) -> 0 | M56: =_xlfn.IFS(L56=1,'2. Prix actuels'!$C$9,L56=2,'2. Prix actuels'!$C$10,L56=3,'2. Prix actuels'!$C$11,L56=4,'2. Prix actuels'!$C$12,L56<1,0) -> 0 | O56: =_xlfn.IFS(N56=1,'2. Prix actuels'!$C$15,N56=2,'2. Prix actuels'!$C$16,N56=3,'2. Prix actuels'!$C$17,N56<1,0) -> 0 | Q56: =IF(P56="o",'2. Prix actuels'!$C$6,0) -> 0 | S56: =IF(R56="o",IF('2. Prix actuels'!$C$21*F56/100<=6000,'2. Prix actuels'!$C$21*'4. Données de calcul'!F56/100,6000),0) -> 0 | U56: =IF(T56="o",'2. Prix actuels'!$C$24,0) -> 0 | W56: =IF(V56="o",'2. Prix actuels'!$C$25,0) -> 0 | Y56: =IF(X56="o",F56*'2. Prix actuels'!$C$27/100,0) -> 0 | AA56: =IF(Z56="o",F56*'2. Prix actuels'!$C$26/100,0) -> 0 | AB56: 0 | AC56: 0
A57: Propres machines | B57: 54 | C57: 10.05 | D57: Libre 5 | G57: =IF(F57>0,F57*'2. Prix actuels'!$C$32/100,0) -> 0 | H57: =IF(F57>0,'2. Prix actuels'!$C$30,0) -> 0 | M57: =_xlfn.IFS(L57=1,'2. Prix actuels'!$C$9,L57=2,'2. Prix actuels'!$C$10,L57=3,'2. Prix actuels'!$C$11,L57=4,'2. Prix actuels'!$C$12,L57<1,0) -> 0 | O57: =_xlfn.IFS(N57=1,'2. Prix actuels'!$C$15,N57=2,'2. Prix actuels'!$C$16,N57=3,'2. Prix actuels'!$C$17,N57<1,0) -> 0 | Q57: =IF(P57="o",'2. Prix actuels'!$C$6,0) -> 0 | S57: =IF(R57="o",IF('2. Prix actuels'!$C$21*F57/100<=6000,'2. Prix actuels'!$C$21*'4. Données de calcul'!F57/100,6000),0) -> 0 | U57: =IF(T57="o",'2. Prix actuels'!$C$24,0) -> 0 | W57: =IF(V57="o",'2. Prix actuels'!$C$25,0) -> 0 | Y57: =IF(X57="o",F57*'2. Prix actuels'!$C$27/100,0) -> 0 | AA57: =IF(Z57="o",F57*'2. Prix actuels'!$C$26/100,0) -> 0 | AB57: 0 | AC57: 0
A58: Propres machines | B58: 55 | C58: 10.06 | D58: Libre 6 | G58: =IF(F58>0,F58*'2. Prix actuels'!$C$32/100,0) -> 0 | H58: =IF(F58>0,'2. Prix actuels'!$C$30,0) -> 0 | M58: =_xlfn.IFS(L58=1,'2. Prix actuels'!$C$9,L58=2,'2. Prix actuels'!$C$10,L58=3,'2. Prix actuels'!$C$11,L58=4,'2. Prix actuels'!$C$12,L58<1,0) -> 0 | O58: =_xlfn.IFS(N58=1,'2. Prix actuels'!$C$15,N58=2,'2. Prix actuels'!$C$16,N58=3,'2. Prix actuels'!$C$17,N58<1,0) -> 0 | Q58: =IF(P58="o",'2. Prix actuels'!$C$6,0) -> 0 | S58: =IF(R58="o",IF('2. Prix actuels'!$C$21*F58/100<=6000,'2. Prix actuels'!$C$21*'4. Données de calcul'!F58/100,6000),0) -> 0 | U58: =IF(T58="o",'2. Prix actuels'!$C$24,0) -> 0 | W58: =IF(V58="o",'2. Prix actuels'!$C$25,0) -> 0 | Y58: =IF(X58="o",F58*'2. Prix actuels'!$C$27/100,0) -> 0 | AA58: =IF(Z58="o",F58*'2. Prix actuels'!$C$26/100,0) -> 0 | AB58: 0 | AC58: 0
A59: Propres machines | B59: 56 | C59: 10.07 | D59: Libre 7 | G59: =IF(F59>0,F59*'2. Prix actuels'!$C$32/100,0) -> 0 | H59: =IF(F59>0,'2. Prix actuels'!$C$30,0) -> 0 | M59: =_xlfn.IFS(L59=1,'2. Prix actuels'!$C$9,L59=2,'2. Prix actuels'!$C$10,L59=3,'2. Prix actuels'!$C$11,L59=4,'2. Prix actuels'!$C$12,L59<1,0) -> 0 | O59: =_xlfn.IFS(N59=1,'2. Prix actuels'!$C$15,N59=2,'2. Prix actuels'!$C$16,N59=3,'2. Prix actuels'!$C$17,N59<1,0) -> 0 | Q59: =IF(P59="o",'2. Prix actuels'!$C$6,0) -> 0 | S59: =IF(R59="o",IF('2. Prix actuels'!$C$21*F59/100<=6000,'2. Prix actuels'!$C$21*'4. Données de calcul'!F59/100,6000),0) -> 0 | U59: =IF(T59="o",'2. Prix actuels'!$C$24,0) -> 0 | W59: =IF(V59="o",'2. Prix actuels'!$C$25,0) -> 0 | Y59: =IF(X59="o",F59*'2. Prix actuels'!$C$27/100,0) -> 0 | AA59: =IF(Z59="o",F59*'2. Prix actuels'!$C$26/100,0) -> 0 | AB59: 0 | AC59: 0
A60: Propres machines | B60: 57 | C60: 10.08 | D60: Libre 8 | G60: =IF(F60>0,F60*'2. Prix actuels'!$C$32/100,0) -> 0 | H60: =IF(F60>0,'2. Prix actuels'!$C$30,0) -> 0 | M60: =_xlfn.IFS(L60=1,'2. Prix actuels'!$C$9,L60=2,'2. Prix actuels'!$C$10,L60=3,'2. Prix actuels'!$C$11,L60=4,'2. Prix actuels'!$C$12,L60<1,0) -> 0 | O60: =_xlfn.IFS(N60=1,'2. Prix actuels'!$C$15,N60=2,'2. Prix actuels'!$C$16,N60=3,'2. Prix actuels'!$C$17,N60<1,0) -> 0 | Q60: =IF(P60="o",'2. Prix actuels'!$C$6,0) -> 0 | S60: =IF(R60="o",IF('2. Prix actuels'!$C$21*F60/100<=6000,'2. Prix actuels'!$C$21*'4. Données de calcul'!F60/100,6000),0) -> 0 | U60: =IF(T60="o",'2. Prix actuels'!$C$24,0) -> 0 | W60: =IF(V60="o",'2. Prix actuels'!$C$25,0) -> 0 | Y60: =IF(X60="o",F60*'2. Prix actuels'!$C$27/100,0) -> 0 | AA60: =IF(Z60="o",F60*'2. Prix actuels'!$C$26/100,0) -> 0 | AB60: 0 | AC60: 0
A61: Propres machines | B61: 58 | C61: 10.09 | D61: Libre 9 | G61: =IF(F61>0,F61*'2. Prix actuels'!$C$32/100,0) -> 0 | H61: =IF(F61>0,'2. Prix actuels'!$C$30,0) -> 0 | M61: =_xlfn.IFS(L61=1,'2. Prix actuels'!$C$9,L61=2,'2. Prix actuels'!$C$10,L61=3,'2. Prix actuels'!$C$11,L61=4,'2. Prix actuels'!$C$12,L61<1,0) -> 0 | O61: =_xlfn.IFS(N61=1,'2. Prix actuels'!$C$15,N61=2,'2. Prix actuels'!$C$16,N61=3,'2. Prix actuels'!$C$17,N61<1,0) -> 0 | Q61: =IF(P61="o",'2. Prix actuels'!$C$6,0) -> 0 | S61: =IF(R61="o",IF('2. Prix actuels'!$C$21*F61/100<=6000,'2. Prix actuels'!$C$21*'4. Données de calcul'!F61/100,6000),0) -> 0 | U61: =IF(T61="o",'2. Prix actuels'!$C$24,0) -> 0 | W61: =IF(V61="o",'2. Prix actuels'!$C$25,0) -> 0 | Y61: =IF(X61="o",F61*'2. Prix actuels'!$C$27/100,0) -> 0 | AA61: =IF(Z61="o",F61*'2. Prix actuels'!$C$26/100,0) -> 0 | AB61: 0 | AC61: 0
A62: Propres machines | B62: 59 | C62: 10.1 | D62: Libre 10 | G62: =IF(F62>0,F62*'2. Prix actuels'!$C$32/100,0) -> 0 | H62: =IF(F62>0,'2. Prix actuels'!$C$30,0) -> 0 | M62: =_xlfn.IFS(L62=1,'2. Prix actuels'!$C$9,L62=2,'2. Prix actuels'!$C$10,L62=3,'2. Prix actuels'!$C$11,L62=4,'2. Prix actuels'!$C$12,L62<1,0) -> 0 | O62: =_xlfn.IFS(N62=1,'2. Prix actuels'!$C$15,N62=2,'2. Prix actuels'!$C$16,N62=3,'2. Prix actuels'!$C$17,N62<1,0) -> 0 | Q62: =IF(P62="o",'2. Prix actuels'!$C$6,0) -> 0 | S62: =IF(R62="o",IF('2. Prix actuels'!$C$21*F62/100<=6000,'2. Prix actuels'!$C$21*'4. Données de calcul'!F62/100,6000),0) -> 0 | U62: =IF(T62="o",'2. Prix actuels'!$C$24,0) -> 0 | W62: =IF(V62="o",'2. Prix actuels'!$C$25,0) -> 0 | Y62: =IF(X62="o",F62*'2. Prix actuels'!$C$27/100,0) -> 0 | AA62: =IF(Z62="o",F62*'2. Prix actuels'!$C$26/100,0) -> 0 | AB62: 0 | AC62: 0
A63: Propres machines | B63: 60 | C63: 10.11 | D63: Libre 11 | G63: =IF(F63>0,F63*'2. Prix actuels'!$C$32/100,0) -> 0 | H63: =IF(F63>0,'2. Prix actuels'!$C$30,0) -> 0 | M63: =_xlfn.IFS(L63=1,'2. Prix actuels'!$C$9,L63=2,'2. Prix actuels'!$C$10,L63=3,'2. Prix actuels'!$C$11,L63=4,'2. Prix actuels'!$C$12,L63<1,0) -> 0 | O63: =_xlfn.IFS(N63=1,'2. Prix actuels'!$C$15,N63=2,'2. Prix actuels'!$C$16,N63=3,'2. Prix actuels'!$C$17,N63<1,0) -> 0 | Q63: =IF(P63="o",'2. Prix actuels'!$C$6,0) -> 0 | S63: =IF(R63="o",IF('2. Prix actuels'!$C$21*F63/100<=6000,'2. Prix actuels'!$C$21*'4. Données de calcul'!F63/100,6000),0) -> 0 | U63: =IF(T63="o",'2. Prix actuels'!$C$24,0) -> 0 | W63: =IF(V63="o",'2. Prix actuels'!$C$25,0) -> 0 | Y63: =IF(X63="o",F63*'2. Prix actuels'!$C$27/100,0) -> 0 | AA63: =IF(Z63="o",F63*'2. Prix actuels'!$C$26/100,0) -> 0 | AB63: 0 | AC63: 0
A64: Propres machines | B64: 61 | C64: 10.12 | D64: Libre 12 | G64: =IF(F64>0,F64*'2. Prix actuels'!$C$32/100,0) -> 0 | H64: =IF(F64>0,'2. Prix actuels'!$C$30,0) -> 0 | M64: =_xlfn.IFS(L64=1,'2. Prix actuels'!$C$9,L64=2,'2. Prix actuels'!$C$10,L64=3,'2. Prix actuels'!$C$11,L64=4,'2. Prix actuels'!$C$12,L64<1,0) -> 0 | O64: =_xlfn.IFS(N64=1,'2. Prix actuels'!$C$15,N64=2,'2. Prix actuels'!$C$16,N64=3,'2. Prix actuels'!$C$17,N64<1,0) -> 0 | Q64: =IF(P64="o",'2. Prix actuels'!$C$6,0) -> 0 | S64: =IF(R64="o",IF('2. Prix actuels'!$C$21*F64/100<=6000,'2. Prix actuels'!$C$21*'4. Données de calcul'!F64/100,6000),0) -> 0 | U64: =IF(T64="o",'2. Prix actuels'!$C$24,0) -> 0 | W64: =IF(V64="o",'2. Prix actuels'!$C$25,0) -> 0 | Y64: =IF(X64="o",F64*'2. Prix actuels'!$C$27/100,0) -> 0 | AA64: =IF(Z64="o",F64*'2. Prix actuels'!$C$26/100,0) -> 0 | AB64: 0 | AC64: 0
A65: Propres machines | B65: 62 | C65: 10.13 | D65: Libre 13 | G65: =IF(F65>0,F65*'2. Prix actuels'!$C$32/100,0) -> 0 | H65: =IF(F65>0,'2. Prix actuels'!$C$30,0) -> 0 | M65: =_xlfn.IFS(L65=1,'2. Prix actuels'!$C$9,L65=2,'2. Prix actuels'!$C$10,L65=3,'2. Prix actuels'!$C$11,L65=4,'2. Prix actuels'!$C$12,L65<1,0) -> 0 | O65: =_xlfn.IFS(N65=1,'2. Prix actuels'!$C$15,N65=2,'2. Prix actuels'!$C$16,N65=3,'2. Prix actuels'!$C$17,N65<1,0) -> 0 | Q65: =IF(P65="o",'2. Prix actuels'!$C$6,0) -> 0 | S65: =IF(R65="o",IF('2. Prix actuels'!$C$21*F65/100<=6000,'2. Prix actuels'!$C$21*'4. Données de calcul'!F65/100,6000),0) -> 0 | U65: =IF(T65="o",'2. Prix actuels'!$C$24,0) -> 0 | W65: =IF(V65="o",'2. Prix actuels'!$C$25,0) -> 0 | Y65: =IF(X65="o",F65*'2. Prix actuels'!$C$27/100,0) -> 0 | AA65: =IF(Z65="o",F65*'2. Prix actuels'!$C$26/100,0) -> 0 | AB65: 0 | AC65: 0
A66: Propres machines | B66: 63 | C66: 10.14 | D66: Libre 14 | G66: =IF(F66>0,F66*'2. Prix actuels'!$C$32/100,0) -> 0 | H66: =IF(F66>0,'2. Prix actuels'!$C$30,0) -> 0 | M66: =_xlfn.IFS(L66=1,'2. Prix actuels'!$C$9,L66=2,'2. Prix actuels'!$C$10,L66=3,'2. Prix actuels'!$C$11,L66=4,'2. Prix actuels'!$C$12,L66<1,0) -> 0 | O66: =_xlfn.IFS(N66=1,'2. Prix actuels'!$C$15,N66=2,'2. Prix actuels'!$C$16,N66=3,'2. Prix actuels'!$C$17,N66<1,0) -> 0 | Q66: =IF(P66="o",'2. Prix actuels'!$C$6,0) -> 0 | S66: =IF(R66="o",IF('2. Prix actuels'!$C$21*F66/100<=6000,'2. Prix actuels'!$C$21*'4. Données de calcul'!F66/100,6000),0) -> 0 | U66: =IF(T66="o",'2. Prix actuels'!$C$24,0) -> 0 | W66: =IF(V66="o",'2. Prix actuels'!$C$25,0) -> 0 | Y66: =IF(X66="o",F66*'2. Prix actuels'!$C$27/100,0) -> 0 | AA66: =IF(Z66="o",F66*'2. Prix actuels'!$C$26/100,0) -> 0 | AB66: 0 | AC66: 0
A67: Propres machines | B67: 64 | C67: 10.15 | D67: Libre 15 | G67: =IF(F67>0,F67*'2. Prix actuels'!$C$32/100,0) -> 0 | H67: =IF(F67>0,'2. Prix actuels'!$C$30,0) -> 0 | M67: =_xlfn.IFS(L67=1,'2. Prix actuels'!$C$9,L67=2,'2. Prix actuels'!$C$10,L67=3,'2. Prix actuels'!$C$11,L67=4,'2. Prix actuels'!$C$12,L67<1,0) -> 0 | O67: =_xlfn.IFS(N67=1,'2. Prix actuels'!$C$15,N67=2,'2. Prix actuels'!$C$16,N67=3,'2. Prix actuels'!$C$17,N67<1,0) -> 0 | Q67: =IF(P67="o",'2. Prix actuels'!$C$6,0) -> 0 | S67: =IF(R67="o",IF('2. Prix actuels'!$C$21*F67/100<=6000,'2. Prix actuels'!$C$21*'4. Données de calcul'!F67/100,6000),0) -> 0 | U67: =IF(T67="o",'2. Prix actuels'!$C$24,0) -> 0 | W67: =IF(V67="o",'2. Prix actuels'!$C$25,0) -> 0 | Y67: =IF(X67="o",F67*'2. Prix actuels'!$C$27/100,0) -> 0 | AA67: =IF(Z67="o",F67*'2. Prix actuels'!$C$26/100,0) -> 0 | AB67: 0 | AC67: 0
A68: Propres machines | B68: 65 | C68: 10.16 | D68: Libre 16 | G68: =IF(F68>0,F68*'2. Prix actuels'!$C$32/100,0) -> 0 | H68: =IF(F68>0,'2. Prix actuels'!$C$30,0) -> 0 | M68: =_xlfn.IFS(L68=1,'2. Prix actuels'!$C$9,L68=2,'2. Prix actuels'!$C$10,L68=3,'2. Prix actuels'!$C$11,L68=4,'2. Prix actuels'!$C$12,L68<1,0) -> 0 | O68: =_xlfn.IFS(N68=1,'2. Prix actuels'!$C$15,N68=2,'2. Prix actuels'!$C$16,N68=3,'2. Prix actuels'!$C$17,N68<1,0) -> 0 | Q68: =IF(P68="o",'2. Prix actuels'!$C$6,0) -> 0 | S68: =IF(R68="o",IF('2. Prix actuels'!$C$21*F68/100<=6000,'2. Prix actuels'!$C$21*'4. Données de calcul'!F68/100,6000),0) -> 0 | U68: =IF(T68="o",'2. Prix actuels'!$C$24,0) -> 0 | W68: =IF(V68="o",'2. Prix actuels'!$C$25,0) -> 0 | Y68: =IF(X68="o",F68*'2. Prix actuels'!$C$27/100,0) -> 0 | AA68: =IF(Z68="o",F68*'2. Prix actuels'!$C$26/100,0) -> 0 | AB68: 0 | AC68: 0
A69: Propres machines | B69: 66 | C69: 10.17 | D69: Libre 17 | G69: =IF(F69>0,F69*'2. Prix actuels'!$C$32/100,0) -> 0 | H69: =IF(F69>0,'2. Prix actuels'!$C$30,0) -> 0 | M69: =_xlfn.IFS(L69=1,'2. Prix actuels'!$C$9,L69=2,'2. Prix actuels'!$C$10,L69=3,'2. Prix actuels'!$C$11,L69=4,'2. Prix actuels'!$C$12,L69<1,0) -> 0 | O69: =_xlfn.IFS(N69=1,'2. Prix actuels'!$C$15,N69=2,'2. Prix actuels'!$C$16,N69=3,'2. Prix actuels'!$C$17,N69<1,0) -> 0 | Q69: =IF(P69="o",'2. Prix actuels'!$C$6,0) -> 0 | S69: =IF(R69="o",IF('2. Prix actuels'!$C$21*F69/100<=6000,'2. Prix actuels'!$C$21*'4. Données de calcul'!F69/100,6000),0) -> 0 | U69: =IF(T69="o",'2. Prix actuels'!$C$24,0) -> 0 | W69: =IF(V69="o",'2. Prix actuels'!$C$25,0) -> 0 | Y69: =IF(X69="o",F69*'2. Prix actuels'!$C$27/100,0) -> 0 | AA69: =IF(Z69="o",F69*'2. Prix actuels'!$C$26/100,0) -> 0 | AB69: 0 | AC69: 0
A70: Propres machines | B70: 67 | C70: 10.18 | D70: Libre 18 | G70: =IF(F70>0,F70*'2. Prix actuels'!$C$32/100,0) -> 0 | H70: =IF(F70>0,'2. Prix actuels'!$C$30,0) -> 0 | M70: =_xlfn.IFS(L70=1,'2. Prix actuels'!$C$9,L70=2,'2. Prix actuels'!$C$10,L70=3,'2. Prix actuels'!$C$11,L70=4,'2. Prix actuels'!$C$12,L70<1,0) -> 0 | O70: =_xlfn.IFS(N70=1,'2. Prix actuels'!$C$15,N70=2,'2. Prix actuels'!$C$16,N70=3,'2. Prix actuels'!$C$17,N70<1,0) -> 0 | Q70: =IF(P70="o",'2. Prix actuels'!$C$6,0) -> 0 | S70: =IF(R70="o",IF('2. Prix actuels'!$C$21*F70/100<=6000,'2. Prix actuels'!$C$21*'4. Données de calcul'!F70/100,6000),0) -> 0 | U70: =IF(T70="o",'2. Prix actuels'!$C$24,0) -> 0 | W70: =IF(V70="o",'2. Prix actuels'!$C$25,0) -> 0 | Y70: =IF(X70="o",F70*'2. Prix actuels'!$C$27/100,0) -> 0 | AA70: =IF(Z70="o",F70*'2. Prix actuels'!$C$26/100,0) -> 0 | AB70: 0 | AC70: 0
A71: Propres machines | B71: 68 | C71: 10.19 | D71: Libre 19 | G71: =IF(F71>0,F71*'2. Prix actuels'!$C$32/100,0) -> 0 | H71: =IF(F71>0,'2. Prix actuels'!$C$30,0) -> 0 | M71: =_xlfn.IFS(L71=1,'2. Prix actuels'!$C$9,L71=2,'2. Prix actuels'!$C$10,L71=3,'2. Prix actuels'!$C$11,L71=4,'2. Prix actuels'!$C$12,L71<1,0) -> 0 | O71: =_xlfn.IFS(N71=1,'2. Prix actuels'!$C$15,N71=2,'2. Prix actuels'!$C$16,N71=3,'2. Prix actuels'!$C$17,N71<1,0) -> 0 | Q71: =IF(P71="o",'2. Prix actuels'!$C$6,0) -> 0 | S71: =IF(R71="o",IF('2. Prix actuels'!$C$21*F71/100<=6000,'2. Prix actuels'!$C$21*'4. Données de calcul'!F71/100,6000),0) -> 0 | U71: =IF(T71="o",'2. Prix actuels'!$C$24,0) -> 0 | W71: =IF(V71="o",'2. Prix actuels'!$C$25,0) -> 0 | Y71: =IF(X71="o",F71*'2. Prix actuels'!$C$27/100,0) -> 0 | AA71: =IF(Z71="o",F71*'2. Prix actuels'!$C$26/100,0) -> 0 | AB71: 0 | AC71: 0
A72: Propres machines | B72: 69 | C72: 10.2 | D72: Libre 20 | G72: =IF(F72>0,F72*'2. Prix actuels'!$C$32/100,0) -> 0 | H72: =IF(F72>0,'2. Prix actuels'!$C$30,0) -> 0 | M72: =_xlfn.IFS(L72=1,'2. Prix actuels'!$C$9,L72=2,'2. Prix actuels'!$C$10,L72=3,'2. Prix actuels'!$C$11,L72=4,'2. Prix actuels'!$C$12,L72<1,0) -> 0 | O72: =_xlfn.IFS(N72=1,'2. Prix actuels'!$C$15,N72=2,'2. Prix actuels'!$C$16,N72=3,'2. Prix actuels'!$C$17,N72<1,0) -> 0 | Q72: =IF(P72="o",'2. Prix actuels'!$C$6,0) -> 0 | S72: =IF(R72="o",IF('2. Prix actuels'!$C$21*F72/100<=6000,'2. Prix actuels'!$C$21*'4. Données de calcul'!F72/100,6000),0) -> 0 | U72: =IF(T72="o",'2. Prix actuels'!$C$24,0) -> 0 | W72: =IF(V72="o",'2. Prix actuels'!$C$25,0) -> 0 | Y72: =IF(X72="o",F72*'2. Prix actuels'!$C$27/100,0) -> 0 | AA72: =IF(Z72="o",F72*'2. Prix actuels'!$C$26/100,0) -> 0 | AB72: 0 | AC72: 0
A73: Propres machines | B73: 70 | C73: 10.21 | D73: Libre 21 | G73: =IF(F73>0,F73*'2. Prix actuels'!$C$32/100,0) -> 0 | H73: =IF(F73>0,'2. Prix actuels'!$C$30,0) -> 0 | M73: =_xlfn.IFS(L73=1,'2. Prix actuels'!$C$9,L73=2,'2. Prix actuels'!$C$10,L73=3,'2. Prix actuels'!$C$11,L73=4,'2. Prix actuels'!$C$12,L73<1,0) -> 0 | O73: =_xlfn.IFS(N73=1,'2. Prix actuels'!$C$15,N73=2,'2. Prix actuels'!$C$16,N73=3,'2. Prix actuels'!$C$17,N73<1,0) -> 0 | Q73: =IF(P73="o",'2. Prix actuels'!$C$6,0) -> 0 | S73: =IF(R73="o",IF('2. Prix actuels'!$C$21*F73/100<=6000,'2. Prix actuels'!$C$21*'4. Données de calcul'!F73/100,6000),0) -> 0 | U73: =IF(T73="o",'2. Prix actuels'!$C$24,0) -> 0 | W73: =IF(V73="o",'2. Prix actuels'!$C$25,0) -> 0 | Y73: =IF(X73="o",F73*'2. Prix actuels'!$C$27/100,0) -> 0 | AA73: =IF(Z73="o",F73*'2. Prix actuels'!$C$26/100,0) -> 0 | AB73: 0 | AC73: 0
B74: 71 | D74: Sélectionnez un objet | E74: 0 | F74: 0 | G74: 0 | H74: 0 | I74: 0 | J74: 0 | K74: 0 | L74: 0 | M74: 0 | N74: 0 | O74: 0 | P74: 0 | Q74: 0 | R74: 0 | S74: 0 | T74: 0 | U74: 0 | V74: 0 | W74: 0 | X74: 0 | Y74: 0 | Z74: 0 | AA74: 0 | AB74: 0 | AC74: 0

Sheet 5. Granph. frais totaux
B2: Propriétaire : | C2: ='2. Prix actuels'!C1 -> 0
A4: Frais totaux de l'ensemble des machines sélectionnées
A6: =INDEX('4. Données de calcul'!$D$4:$D$74,MATCH('3. Coûts des machines'!$D$3,'4. Données de calcul'!$B$4:$B$74)) -> Sélectionnez un objet
A7: =INDEX('4. Données de calcul'!$D$4:$D$74,MATCH('3. Coûts des machines'!$E$3,'4. Données de calcul'!$B$4:$B$74)) -> Sélectionnez un objet
A8: =INDEX('4. Données de calcul'!$D$4:$D$74,MATCH('3. Coûts des machines'!$F$3,'4. Données de calcul'!$B$4:$B$74)) -> Sélectionnez un objet
A9: =INDEX('4. Données de calcul'!$D$4:$D$74,MATCH('3. Coûts des machines'!$G$3,'4. Données de calcul'!$B$4:$B$74)) -> Sélectionnez un objet
A11: Frais fixes annuels | B11: ='3. Coûts des machines'!H35 -> 0
A12: Frais variables par heure d'utilisation | B12: ='3. Coûts des machines'!H46 -> 0
A13: Coût de revient total par heure d'utilisation | B13: ='3. Coûts des machines'!$H$53 -> 0
A14: Taux d'indemnisation (10% de suppl. risque) | B14: ='3. Coûts des machines'!$H$62 -> 0

Sheet 6. Graph. frais fixes et vari.
C2: Propriétaire : | D2: ='2. Prix actuels'!C1 -> 0
B4: Calcul des frais des machines sélectionnées
D5: Frais fixes | E5: Frais variable
A6: 1 | B6: =INDEX('4. Données de calcul'!$D$4:$D$74,MATCH('3. Coûts des machines'!$D$3,'4. Données de calcul'!$B$4:$B$74)) -> Sélectionnez un objet | D6: ='3. Coûts des machines'!D35 -> 0 | E6: ='3. Coûts des machines'!D46 -> 0
A7: 2 | B7: =INDEX('4. Données de calcul'!$D$4:$D$74,MATCH('3. Coûts des machines'!$E$3,'4. Données de calcul'!$B$4:$B$74)) -> Sélectionnez un objet | D7: ='3. Coûts des machines'!E35 -> 0 | E7: ='3. Coûts des machines'!E46 -> 0
A8: 3 | B8: =INDEX('4. Données de calcul'!$D$4:$D$74,MATCH('3. Coûts des machines'!$F$3,'4. Données de calcul'!$B$4:$B$74)) -> Sélectionnez un objet | D8: ='3. Coûts des machines'!F35 -> 0 | E8: ='3. Coûts des machines'!F46 -> 0
A9: 4 | B9: =INDEX('4. Données de calcul'!$D$4:$D$74,MATCH('3. Coûts des machines'!$G$3,'4. Données de calcul'!$B$4:$B$74)) -> Sélectionnez un objet | D9: ='3. Coûts des machines'!G35 -> 0 | E9: ='3. Coûts des machines'!G46 -> 0

Sheet 7. Graph. coûts horaires
B2: Propriétaire : | C2: ='2. Prix actuels'!C1 -> 0
A4: Calcul de revient par heure d'utilisation
A6: =INDEX('4. Données de calcul'!$D$4:$D$74,MATCH('3. Coûts des machines'!$D$3,'4. Données de calcul'!$B$4:$B$74)) -> Sélectionnez un objet
A7: =INDEX('4. Données de calcul'!$D$4:$D$74,MATCH('3. Coûts des machines'!$E$3,'4. Données de calcul'!$B$4:$B$74)) -> Sélectionnez un objet
A8: =INDEX('4. Données de calcul'!$D$4:$D$74,MATCH('3. Coûts des machines'!$F$3,'4. Données de calcul'!$B$4:$B$74)) -> Sélectionnez un objet
A9: =INDEX('4. Données de calcul'!$D$4:$D$674,MATCH('3. Coûts des machines'!$G$3,'4. Données de calcul'!$B$4:$B$74)) -> Sélectionnez un objet
A72: Prix de revient pour chaque machine, en chiffres (de 100 à 2000 h)
B74: ='3. Coûts des machines'!D81 -> Sélectionnez un objet | C74: ='3. Coûts des machines'!E81 -> Sélectionnez un objet | D74: ='3. Coûts des machines'!F81 -> Sélectionnez un objet | E74: ='3. Coûts des machines'!G81 -> Sélectionnez un objet | F74: ='3. Coûts des machines'!H81 -> Total
A75: 100 | B75: ='3. Coûts des machines'!D97 -> 0 | C75: ='3. Coûts des machines'!E97 -> 0 | D75: ='3. Coûts des machines'!F97 -> 0 | E75: ='3. Coûts des machines'!G97 -> 0 | F75: ='3. Coûts des machines'!H97 -> 0
A76: 150 | B76: ='3. Coûts des machines'!D98 -> 0 | C76: ='3. Coûts des machines'!E98 -> 0 | D76: ='3. Coûts des machines'!F98 -> 0 | E76: ='3. Coûts des machines'!G98 -> 0 | F76: ='3. Coûts des machines'!H98 -> 0
A77: 200 | B77: ='3. Coûts des machines'!D99 -> 0 | C77: ='3. Coûts des machines'!E99 -> 0 | D77: ='3. Coûts des machines'!F99 -> 0 | E77: ='3. Coûts des machines'!G99 -> 0 | F77: ='3. Coûts des machines'!H99 -> 0
A78: 250 | B78: ='3. Coûts des machines'!D100 -> 0 | C78: ='3. Coûts des machines'!E100 -> 0 | D78: ='3. Coûts des machines'!F100 -> 0 | E78: ='3. Coûts des machines'!G100 -> 0 | F78: ='3. Coûts des machines'!H100 -> 0
A79: 300 | B79: ='3. Coûts des machines'!D101 -> 0 | C79: ='3. Coûts des machines'!E101 -> 0 | D79: ='3. Coûts des machines'!F101 -> 0 | E79: ='3. Coûts des machines'!G101 -> 0 | F79: ='3. Coûts des machines'!H101 -> 0
A80: 350 | B80: ='3. Coûts des machines'!D102 -> 0 | C80: ='3. Coûts des machines'!E102 -> 0 | D80: ='3. Coûts des machines'!F102 -> 0 | E80: ='3. Coûts des machines'!G102 -> 0 | F80: ='3. Coûts des machines'!H102 -> 0
A81: 400 | B81: ='3. Coûts des machines'!D103 -> 0 | C81: ='3. Coûts des machines'!E103 -> 0 | D81: ='3. Coûts des machines'!F103 -> 0 | E81: ='3. Coûts des machines'!G103 -> 0 | F81: ='3. Coûts des machines'!H103 -> 0
A82: 450 | B82: ='3. Coûts des machines'!D104 -> 0 | C82: ='3. Coûts des machines'!E104 -> 0 | D82: ='3. Coûts des machines'!F104 -> 0 | E82: ='3. Coûts des machines'!G104 -> 0 | F82: ='3. Coûts des machines'!H104 -> 0
A83: 500 | B83: ='3. Coûts des machines'!D105 -> 0 | C83: ='3. Coûts des machines'!E105 -> 0 | D83: ='3. Coûts des machines'!F105 -> 0 | E83: ='3. Coûts des machines'!G105 -> 0 | F83: ='3. Coûts des machines'!H105 -> 0
A84: 550 | B84: ='3. Coûts des machines'!D106 -> 0 | C84: ='3. Coûts des machines'!E106 -> 0 | D84: ='3. Coûts des machines'!F106 -> 0 | E84: ='3. Coûts des machines'!G106 -> 0 | F84: ='3. Coûts des machines'!H106 -> 0
A85: 600 | B85: ='3. Coûts des machines'!D107 -> 0 | C85: ='3. Coûts des machines'!E107 -> 0 | D85: ='3. Coûts des machines'!F107 -> 0 | E85: ='3. Coûts des machines'!G107 -> 0 | F85: ='3. Coûts des machines'!H107 -> 0
A86: 650 | B86: ='3. Coûts des machines'!D108 -> 0 | C86: ='3. Coûts des machines'!E108 -> 0 | D86: ='3. Coûts des machines'!F108 -> 0 | E86: ='3. Coûts des machines'!G108 -> 0 | F86: ='3. Coûts des machines'!H108 -> 0
A87: 700 | B87: ='3. Coûts des machines'!D109 -> 0 | C87: ='3. Coûts des machines'!E109 -> 0 | D87: ='3. Coûts des machines'!F109 -> 0 | E87: ='3. Coûts des machines'!G109 -> 0 | F87: ='3. Coûts des machines'!H109 -> 0
A88: 750 | B88: ='3. Coûts des machines'!D110 -> 0 | C88: ='3. Coûts des machines'!E110 -> 0 | D88: ='3. Coûts des machines'!F110 -> 0 | E88: ='3. Coûts des machines'!G110 -> 0 | F88: ='3. Coûts des machines'!H110 -> 0
A89: 800 | B89: ='3. Coûts des machines'!D111 -> 0 | C89: ='3. Coûts des machines'!E111 -> 0 | D89: ='3. Coûts des machines'!F111 -> 0 | E89: ='3. Coûts des machines'!G111 -> 0 | F89: ='3. Coûts des machines'!H111 -> 0
A90: 850 | B90: ='3. Coûts des machines'!D112 -> 0 | C90: ='3. Coûts des machines'!E112 -> 0 | D90: ='3. Coûts des machines'!F112 -> 0 | E90: ='3. Coûts des machines'!G112 -> 0 | F90: ='3. Coûts des machines'!H112 -> 0
A91: 900 | B91: ='3. Coûts des machines'!D113 -> 0 | C91: ='3. Coûts des machines'!E113 -> 0 | D91: ='3. Coûts des machines'!F113 -> 0 | E91: ='3. Coûts des machines'!G113 -> 0 | F91: ='3. Coûts des machines'!H113 -> 0
A92: 950 | B92: ='3. Coûts des machines'!D114 -> 0 | C92: ='3. Coûts des machines'!E114 -> 0 | D92: ='3. Coûts des machines'!F114 -> 0 | E92: ='3. Coûts des machines'!G114 -> 0 | F92: ='3. Coûts des machines'!H114 -> 0
A93: 1000 | B93: ='3. Coûts des machines'!D115 -> 0 | C93: ='3. Coûts des machines'!E115 -> 0 | D93: ='3. Coûts des machines'!F115 -> 0 | E93: ='3. Coûts des machines'!G115 -> 0 | F93: ='3. Coûts des machines'!H115 -> 0
A95: Plus de 1000 heures d'utilisation
A96: =IF(AND('3. Coûts des machines'!D$7>0,'3. Coûts des machines'!D$6>1000),'3. Coûts des machines'!D$6,) -> 0 | B96: =IF(A96>1000,'3. Coûts des machines'!D$53,) -> 0 | F96: =SUM(B96:E96) -> 0
A97: =IF(AND('3. Coûts des machines'!E$7>0,'3. Coûts des machines'!E$6>1000),'3. Coûts des machines'!E$6,) -> 0 | C97: =IF(A97>1000,'3. Coûts des machines'!E$53,) -> 0 | F97: =SUM(B97:E97) -> 0
A98: =IF(AND('3. Coûts des machines'!F$7>0,'3. Coûts des machines'!F$6>1000),'3. Coûts des machines'!F$6,) -> 0 | D98: =IF(A98>1000,'3. Coûts des machines'!F$53,) -> 0 | F98: =SUM(B98:E98) -> 0
A99: =IF(AND('3. Coûts des machines'!G$7>0,'3. Coûts des machines'!G$6>1000),'3. Coûts des machines'!G$6,) -> 0 | E99: =IF(A96>1000,'3. Coûts des machines'!G$53,) -> 0 | F99: =SUM(B99:E99) -> 0
